Cogmind - Beta 16 @@@ ROGUE MODE // 2025.12.14 @ 13:37:55 // Winter2019/RPGLIKE Player: Gallgagger Result: Destroyed by Superfortress with Graviton Cannon Performance ------------- Evolutions (7) 3500 Regions Visited (24) 4800 Robots Destroyed (1087) 5435 Value Destroyed (61622) 61622 Prototype IDs (148) 2960 Alien Tech Used (6) 1200 Bonus (57211) 57211 TOTAL SCORE: 136728 Bonus ------- Triggered High Security 1000 High Alert Combat Kills 25167 Follower Combat Kills 458 Registered with UFD 300 Met Optimus in HQ 500 Met Data Miner 300 Met Warlord at Base 500 MAIN.C Attacked Warlord 500 Warlord Defense Kills 28782 Scanned by Researcher 500 Friendly Fire -796 Cogmind --------- Core Integrity 0/1200 Matter 300/300 Energy 13/3200 System Corruption 2% Temperature Cool (47) Movement Hovering (38) Location -3/Protoforge Parts ------- > --- POWER (3) -------- MA-1KR's Cyclogen Vortex Chain Reactor > --- PROPULSION (6) --- Cooled Antigrav System Experimental Antigrav System Experimental Antigrav System Gravjet Array Concept Gyrokinetic System > --- UTILITY (10) ----- Concept Thermoelectric Network Concept Projectile Intercept Suite Concept Weapon Articulator Experimental Core Analyzer Experimental Armor Integrity Analyzer Particle Accelerator Quantum Capacitor Graphene Brace (fused) Experimental Force Field > --- WEAPON (5) ------- PD Laser KN-7UR's Autopenetrator Experimental Jetlance > --- INVENTORY (6) ---- Advanced Gravity Neutralizer Concept Antimissile System Crosscalibrator Molecular Deconstructor Peak State ------------ > --- POWER ------------ MA-1KR's Cyclogen Vortex Chain Reactor > --- PROPULSION ------- Cooled Antigrav System Experimental Antigrav System Experimental Antigrav System Gravjet Array Concept Gyrokinetic System > --- UTILITY ---------- Concept Thermoelectric Network Experimental Core Analyzer Experimental Armor Integrity Analyzer Particle Accelerator Quantum Capacitor Concept Cloak Mesh Concept Cloak Mesh Graphene Brace Experimental Force Field > --- WEAPON ----------- PD Laser KN-7UR's Autopenetrator Experimental Jetlance > --- INVENTORY -------- Advanced Gravity Neutralizer Concept Antimissile System Crosscalibrator Transdimensional Reconstructor Molecular Deconstructor [Rating: 233] Favorites ----------- Power MA-1KR's Cyclogen Engine Cooled Ion Engine Power Core Light Nuclear Core Reactor MA-1KR's Cyclogen Propulsion Antigrav System Leg Aluminum Leg Wheel Wheel Hover Unit Antigrav System Flight Unit Experimental Surge Thruster Utility Advanced Weight Redist. System Device Advanced Weight Redist. System Storage Experimental Energy Well Processor Advanced Signal Interpreter Hackware Hacking Suite Protection Makeshift Ablative Armor Weapon KN-7UR's Autopenetrator Energy Gun KN-7UR's Autopenetrator Energy Cannon Compact Ion Cannon Ballistic Gun Assault Rifle Ballistic Cannon Magnetic Acceleration Cannon Launcher Shock Bomb Launcher Special Weapon LU-1G1's Laser Shovel Slashing Weapon Experimental Terror Saw Piercing Weapon Experimental Jetlance Build | -11 -10 -10 -9 -9 -9 -9 -6 -6 -6 -6 -5 -5 -5 -5 -5 -4 -4 -4 -4 -4 -3 -3 -3 -3 ------- Run | Yrd Mat Min Mat Sto Rec Scr Fac Low Low Dat Pro Fac Upp Upp Zhi Pro Fac Upp Upp War Pro Res Qua Frg Slots Evolved 20 | 3 3 . 4 . . . 3 2 . . 1 1 1 . . . 1 . . 1 . . . . Power 2 | . . . 1 . . . . . . . . . . . . . . . . 1 . . . . Propulsion 5 | 1 1 . . . . . 2 1 . . . . . . . . . . . . . . . . Utility 9 | 1 2 . 2 . . . 1 1 . . 1 . . . . . 1 . . . . . . . Weapon 4 | 1 . . 1 . . . . . . . . 1 1 . . . . . . . . . . . Parts Attached 200 | 7 7 . 18 2 2 26 20 3 2 . 5 20 4 2 2 . 9 . . 15 1 7 8 40 Power 13 | 1 . . 3 1 . 1 . . 1 . 1 1 . . . . 2 . . 1 . . . 1 Engine 5 | 1 . . 2 1 . . . . 1 . . . . . . . . . . . . . . . Core 4 | . . . 1 . . . . . . . 1 1 . . . . 1 . . . . . . . Reactor 4 | . . . . . . 1 . . . . . . . . . . 1 . . 1 . . . 1 Propulsion 47 | 2 2 . 6 . . 3 11 . . . 1 6 . . 1 . 1 . . 2 . 4 . 8 Treads . | . . . . . . . . . . . . . . . . . . . . . . . . . Leg 4 | . 2 . . . . . . . . . . . . . 1 . 1 . . . . . . . Wheel 4 | 2 . . . . . . . . . . . 2 . . . . . . . . . . . . Hover 38 | . . . 6 . . 3 11 . . . 1 4 . . . . . . . 2 . 4 . 7 Flight 1 | . . . . . . . . . . . . . . . . . . . . . . . . 1 Utility 98 | 2 3 . 5 . 1 12 7 3 1 . 3 5 3 1 1 . 6 . . 10 1 2 6 26 Device 55 | 2 . . . . . 4 2 1 . . 2 5 1 1 . . 6 . . 4 1 2 6 18 Storage 4 | . . . . . . 2 . . . . . . . . 1 . . . . 1 . . . . Processor 17 | . . . 1 . 1 3 2 . . . . . . . . . . . . 4 . . . 6 Hackware 1 | . . . 1 . . . . . . . . . . . . . . . . . . . . . Protection 21 | . 3 . 3 . . 3 3 2 1 . 1 . 2 . . . . . . 1 . . . 2 Artifact . | . . . . . . . . . . . . . . . . . . . . . . . . . Weapon 42 | 2 2 . 4 1 1 10 2 . . . . 8 1 1 . . . . . 2 . 1 2 5 Energy Gun 15 | . 2 . 4 . 1 1 1 . . . . 3 . . . . . . . 1 . 1 1 . Energy Cannon 3 | . . . . . . . . . . . . 2 . . . . . . . . . . 1 . Ballistic Gun 6 | 2 . . . 1 . 1 . . . . . . . . . . . . . . . . . 2 Ballistic Cannon 3 | . . . . . . 1 . . . . . 2 . . . . . . . . . . . . Launcher 2 | . . . . . . 1 . . . . . 1 . . . . . . . . . . . . Special Weapon 10 | . . . . . . 6 1 . . . . . 1 1 . . . . . . . . . 1 Impact Weapon . | . . . . . . . . . . . . . . . . . . . . . . . . . Slashing Weapon 1 | . . . . . . . . . . . . . . . . . . . . . . . . 1 Piercing Weapon 2 | . . . . . . . . . . . . . . . . . . . . 1 . . . 1 Special Melee Weapon . | . . . . . . . . . . . . . . . . . . . . . . . . . Unidentified Prototypes 67 | . . . 2 2 1 3 3 . . . . 10 1 . 3 . 4 . 1 12 . 2 7 16 Corrupted Parts 1 | . . . . . . 1 . . . . . . . . . . . . . . . . . . System Corruption 4 | . . . . . . 4 . . . . . . . . . . . . . . . . . . Parts Lost 9 | . . . 3 . . 5 1 . . . . . . . . . . . . . . . . . Power 1 | . . . 1 . . . . . . . . . . . . . . . . . . . . . Propulsion . | . . . . . . . . . . . . . . . . . . . . . . . . . Utility 5 | . . . 2 . . 2 1 . . . . . . . . . . . . . . . . . Weapon 3 | . . . . . . 3 . . . . . . . . . . . . . . . . . . Highest Loss Streak 2 | . . . 1 . . 2 1 . . . . . . . . . . . . . . . . . To Critical Strikes . | . . . . . . . . . . . . . . . . . . . . . . . . . Average Backups 2 | . 1 1 1 2 2 1 2 3 3 3 3 3 3 3 3 3 3 4 4 3 3 3 4 4 Power . | . . . . . . . . . . . . . . . . . . . . . . . . . Propulsion . | . . . . . . . . . . . . . . . . . . . . . . . . . Utility 1 | . 1 . . 1 . . 1 1 2 2 2 1 . . . . . 1 1 . . . . 2 Weapon . | . . 1 1 1 1 1 . . . . . . . 1 1 1 1 1 1 1 1 1 1 1 Tool/Special . | . . . . . . . . . . . . . . . . . . . . . . . . . Unused Backups 12 | . 2 . 1 . . 3 . 1 . . . 1 . . . . . . . 1 . . . 3 Power 1 | . 1 . . . . . . . . . . . . . . . . . . . . . . . Propulsion 1 | . . . . . . 1 . . . . . . . . . . . . . . . . . . Utility 3 | . . . . . . . . . . . . 1 . . . . . . . 1 . . . 1 Weapon 6 | . 1 . 1 . . 2 . 1 . . . . . . . . . . . . . . . 1 Tool/Special 1 | . . . . . . . . . . . . . . . . . . . . . . . . 1 Average Slot Usage (%) 88 | . 99 100 93 100 93 86 79 94 89 89 93 92 88 90 87 90 90 91 91 87 87 87 83 79 Engine 3 | . 12 10 4 7 7 6 5 4 5 5 1 . . . . . . . . . . . . . Core 1 | . . . 6 7 7 5 . . . . 3 4 4 4 4 4 . . . . . . . . Reactor 4 | . . . . . . 1 5 5 5 5 5 4 4 4 4 4 7 8 8 8 8 8 8 8 Wheel 2 | . 22 20 2 . . . . . . . . . . . . . . . . . . . . . Hover 22 | . . . 20 21 21 21 27 27 26 26 30 29 27 27 27 27 26 26 26 25 25 25 25 20 Device 19 | . 22 20 15 14 14 13 6 10 10 10 11 19 21 22 22 22 27 30 30 26 29 29 29 27 Processor 8 | . . . 7 7 8 9 7 16 15 15 15 14 13 13 13 13 10 8 8 8 8 8 4 7 Protection 7 | . 11 20 13 14 14 12 5 10 10 10 10 5 4 4 4 4 3 4 4 3 4 4 4 1 Energy Gun 8 | . 11 20 18 21 14 4 5 5 5 5 5 5 8 8 6 7 8 8 8 7 8 8 8 7 Special Weapon 4 | . . . . . . 7 11 10 10 10 10 7 1 4 4 5 4 4 4 4 4 4 4 1 Peak Build Rating 233 | 9 16 16 32 32 37 63 95 93 95 93 108 133 140 140 140 140 159 153 153 182 178 189 206 233 Average Rating 111 | 5 11 16 21 32 30 37 80 88 93 93 102 118 133 139 135 139 148 153 152 173 175 183 196 218 On Entrance 101 | . 9 16 16 32 32 24 63 86 93 93 93 108 130 138 140 140 138 153 153 153 175 175 189 199 Avg Prop Armor Cover (%) 4 | . 5 4 3 . . . . . . . . 3 . . . . 1 . . 1 . . . . Naked Turns . | . . . . . . . . . . . . . . . . . . . . . . . . . Heaviest Build 112 | 8 25 25 30 30 33 80 83 63 65 63 73 72 70 68 68 68 80 80 80 102 100 100 106 112 Greatest Support 142 | 20 30 30 31 31 36 45 74 74 74 74 86 90 88 88 88 88 88 88 88 123 101 107 114 142 Greatest Overweight (x) 2 | . . . 1 . 1 1 1 . . . . 1 . . . . 1 . . 1 . . . 2 Average Overweight (x) . | . . . . . . . . . . . . . . . . . . . . . . . . . Largest Inventory Capacity 6 | 2 2 2 2 2 2 2 3 3 3 3 3 4 4 4 4 4 5 5 5 5 5 5 6 6 Average Capacity 3 | 2 2 2 2 2 2 2 2 3 3 3 3 3 4 4 4 4 4 5 5 5 5 5 5 6 Most Carried 6 | . 2 2 2 2 2 2 3 3 3 3 3 4 4 4 4 4 5 5 5 5 5 5 6 6 Average Carried 3 | . 1 1 1 2 1 1 2 2 3 3 3 3 3 4 4 4 4 5 5 4 5 5 5 5 Final Capacity 6 | 2 2 2 2 2 2 2 3 3 3 3 3 4 4 4 4 4 5 5 5 5 5 5 6 6 Final Carried 6 | . 2 2 2 2 2 2 3 3 3 3 3 4 4 4 4 4 5 5 5 5 5 5 6 5 Class Distribution -------------------- 36% | Hacker-Sprinter 17% | Scavenger-Gunner 12% | Mutant 9% | Hacker-Gunner 7% | Scavenger-Tank 7% | Scavenger-Mutant 3% | Gunner Dominant Class ---------------- Mutant | -10/Materials Mutant | -10/Mines Scavenger-Mutant | -9/Materials Scavenger-Gunner | -9/Storage Scavenger-Mutant | -9/Recycling Gunner | -9/Scraptown Hacker-Gunner | -6/Factory Scavenger-Tank | -6/Lower Caves Scavenger-Tank | -6/Lower Caves Scavenger-Tank | -6/Data Miner Scavenger-Tank | -5/Proximity Caves Hacker-Sprinter | -5/Factory Hacker-Sprinter | -5/Upper Caves Hacker-Sprinter | -5/Upper Caves Hacker-Sprinter | -5/Zhirov Hacker-Sprinter | -4/Proximity Caves Hacker-Sprinter | -4/Factory Hacker-Sprinter | -4/Upper Caves Hacker-Sprinter | -4/Upper Caves Hacker-Sprinter | -4/Warlord Hacker-Sprinter | -3/Proximity Caves Hacker-Sprinter | -3/Research Hacker-Sprinter | -3/Quarantine Scavenger-Gunner | -3/Protoforge Resources | -11 -10 -10 -9 -9 -9 -9 -6 -6 -6 -6 -5 -5 -5 -5 -5 -4 -4 -4 -4 -4 -3 -3 -3 -3 ----------- Run | Yrd Mat Min Mat Sto Rec Scr Fac Low Low Dat Pro Fac Upp Upp Zhi Pro Fac Upp Upp War Pro Res Qua Frg Matter Collected 4755 | 278 352 . 312 98 20 368 341 78 66 . 95 339 149 68 . 134 316 . 20 471 47 75 174 954 Remotely . | . . . . . . . . . . . . . . . . . . . . . . . . . Salvage Created 57231 | 87 1247 275 2375 800 166 1998 3155 739 720 . 439 5313 1322 736 . 905 7461 596 613 11906 809 1093 1083 13393 Parts 2445 | 7 62 17 111 51 3 111 147 26 24 . 24 167 30 18 . 30 302 29 14 451 38 64 73 646 Haulers Intercepted 18 | . 1 . 4 1 . . 1 . . . . 5 . . . . 5 . . . . 1 . . Recyclers Shooed 14 | . 1 1 1 . . . 5 . . . . 4 . . . . 1 . . . . 1 . . Parts Field Recycled . | . . . . . . . . . . . . . . . . . . . . . . . . . Retrieved Matter . | . . . . . . . . . . . . . . . . . . . . . . . . . Parts Self-Destructed 239 | . . . . . . . . 26 21 . 24 . 37 26 . 30 . 25 12 . 38 . . . Prevented 3 | . . . . . . . . . . . . . . 2 . . . 1 . . . . . . Parts Restored 1 | . . . . . . . . . . . . . . . . . . . . . . . . 1 Faulty 1 | . . . . . . . . . . . . . . . . . . . . . . . . 1 Kills | -11 -10 -10 -9 -9 -9 -9 -6 -6 -6 -6 -5 -5 -5 -5 -5 -4 -4 -4 -4 -4 -3 -3 -3 -3 ------- Run | Yrd Mat Min Mat Sto Rec Scr Fac Low Low Dat Pro Fac Upp Upp Zhi Pro Fac Upp Upp War Pro Res Qua Frg Combat Hostiles Destroyed 975 | . 30 17 51 21 3 41 54 18 12 . 10 77 14 15 . 14 104 12 9 217 16 15 22 203 Melee 3 | . . . . . . . 2 . . . . . . . . . . . . . . . . 1 Guns 912 | . 30 17 51 20 3 41 43 17 11 . 10 68 14 15 . 14 94 12 9 197 15 14 21 196 AOE 2 | . . . . . . . 1 . . . . . . . . . 1 . . . . . . . Classes Destroyed 42 | 2 2 3 8 1 . 7 4 1 1 . . 2 . . . . . . . 2 . . 3 6 Worker 36 | . . 1 2 . . . 9 . . . . 9 . . . . 6 . . . . 4 2 3 Builder 26 | . . . 3 . . . 5 . . . . 5 . . . . 8 . . . . . . 5 Tunneler 4 | 1 . . . . . . 1 . . . . 1 . . . . 1 . . . . . . . Hauler 18 | . 1 . 4 1 . . 1 . . . . 5 . . . . 5 . . . . 1 . . Recycler 17 | 1 3 . 4 . . . 4 . . . . . . . . . 4 . . . . 1 . . Carrier 1 | . . . . . . . . . . . . . . . . . . . . . . . . 1 Mechanic 8 | . . . 1 . . . . . . . . 1 . . . . 2 . . 1 . . . 3 Operator 16 | . . . 1 . . . 5 . . . . 2 . . . . 3 . . . . 2 1 2 Drone 4 | . . . . . . . . . . . . . . . . . . . . . . . . 4 Turret 1 | . . . . . . 1 . . . . . . . . . . . . . . . . . . Watcher 19 | . . . 2 1 . . . . . . . 1 . . . . 5 . . . . 4 2 4 Swarmer 119 | . . . 7 4 . . 4 11 4 . 8 14 6 4 . 5 9 5 6 17 8 4 . 3 Saboteur 31 | . . . . . . . 2 . . . . . . . . . 4 . . 16 . . . 9 Grunt 360 | . 30 9 33 9 . . 19 3 3 . . 34 4 6 . 7 41 2 1 94 3 4 6 52 Brawler 35 | . . . 1 . . . 1 1 2 . . 1 1 2 . 1 3 1 . 11 1 . . 9 Duelist 26 | . . . . 1 . . 2 . . . . 1 1 . . . 6 1 . 5 . . 1 8 Protector 16 | . . . 1 . . . 1 . . . . 1 . . . . 3 . . 10 . . . . Researcher 5 | . . . . . . . . . . . . . . . . . . . . . . . 1 4 Sentry 64 | . . . 9 7 3 . 5 1 1 . . 4 2 1 . 1 8 1 1 . 1 2 . 17 Demolisher 4 | . . 1 . . . . . . . . . . . . . . . . . 3 . . . . Specialist 19 | . . . . . . . . . . . . 1 . . . . 4 . . 5 . . 3 6 Hunter 58 | . . . . . . . 13 . . . . 6 . 2 . . 14 . . 9 2 2 7 3 Programmer 84 | . . . . . . . 6 . . . 2 11 . . . . 9 . . 24 . . 3 29 Heavy 7 | . . . . . . . . . . . . 3 . . . . 2 . . . . 2 . . Q-Series 1 | . . . . . . . . . . . . . . . . . . . . . . . . 1 Behemoth 12 | . . . . . . . 1 . 1 . . 1 . . . . 1 1 1 3 1 1 . 1 Hotshot 19 | . . . . . . . . . . . . . . . . . . . . . . . . 19 Decapitator 15 | . . . . . . . . . . . . . . . . . . . . . . . . 15 Immortal 5 | . . . . . . . . . . . . . . . . . . . . . . . . 5 Overlord 1 | . . . . . . . . . . . . . . . . . . . . . . . . 1 Striker 14 | . . . . . . . . . . . . . . . . . . . . 10 . . . 4 Executioner 15 | . . . . . . . . . . . . . . . . . . . . 10 . . . 5 Alpha 7 5 | . . . . . . . . . . . . . . . . . . . . . . . 1 4 Fortress 1 | . . . . . . . . . . . . . . . . . . . . . . . 1 . V-Series 8 | . . . . . . . . . . . . . . . . . . . . . . . . 8 Federalist 2 | . . . . . . 2 . . . . . . . . . . . . . . . . . . Explorer 3 | . . . . . . 3 . . . . . . . . . . . . . . . . . . Ranger 5 | . . . . . . 5 . . . . . . . . . . . . . . . . . . Guru 3 | . . . . . . 3 . . . . . . . . . . . . . . . . . . Scientist 1 | . . . . . . 1 . . . . . . . . . . . . . . . . . . Scrapper 28 | . . . . . . 28 . . . . . . . . . . . . . . . . . . Tinkerer 1 | . . . . . . . . . . . . . . . . . . . . . . . . 1 Thief 2 | . . . . . . . . 2 . . . . . . . . . . . . . . . . Assembled 7 | . . 7 . . . . . . . . . . . . . . . . . . . . . . Thug 1 | . . . . . . . . . . . . . . . . . . . . 1 . . . . Savage 1 | . . . . . . . . . . . . . . . . . . . . 1 . . . . Mutant 2 | . . . . . . . . . 1 . . . . . . . . 1 . . . . . . Best Kill Streak 38 | 2 6 7 15 6 1 18 19 4 4 . 8 14 9 11 . 6 29 6 5 38 6 11 7 25 Combat Bots Only 38 | . 6 7 4 6 1 17 15 4 4 . 8 8 9 11 . 6 26 6 5 38 6 7 6 24 Max Kills in Single Turn 4 | 1 1 2 2 2 1 3 3 2 1 . 1 3 3 2 . 2 4 2 2 3 2 2 2 3 Gunslinging 1 | . . 1 1 1 . . . . . . . . . . . . . . . . . . . . Exploded 1 | . . . . . . . 1 . . . . . . . . . 1 . . . . . . . Melee 1 | . . . . . . . 1 . . . . . . . . . . . . . . . . 1 Uniques/NPCs Destroyed . | . . . . . . . . . . . . . . . . . . . . . . . . . Combat | -11 -10 -10 -9 -9 -9 -9 -6 -6 -6 -6 -5 -5 -5 -5 -5 -4 -4 -4 -4 -4 -3 -3 -3 -3 -------- Run | Yrd Mat Min Mat Sto Rec Scr Fac Low Low Dat Pro Fac Upp Upp Zhi Pro Fac Upp Upp War Pro Res Qua Frg Hostile Shots Fired 3254 | . 100 33 96 61 8 268 342 51 47 . 28 302 17 25 . 33 374 19 15 546 45 38 137 669 Missed 1357 | . 23 1 24 21 5 103 125 24 25 . 14 143 8 14 . 18 194 9 6 231 21 17 66 265 Deflected 36 | . . . . . . . . . . . . 10 1 1 . 2 16 . 1 1 . . . 4 Hits 1897 | . 77 32 72 40 3 165 217 27 22 . 14 159 9 11 . 15 180 10 9 315 24 21 71 404 Melee 24 | . . 7 . . . 1 2 3 . . . . . . . . . . . . . . . 11 Projectile 1873 | . 77 25 72 40 3 164 215 24 22 . 14 159 9 11 . 15 180 10 9 315 24 21 71 393 AOE 28 | . . 4 . . . . . . . . . 1 . . . . 1 . . 3 . . . 19 Critical Strikes 95 | . 2 . . 2 . 11 8 . . . . 4 . . . . 10 . 1 20 1 . 2 34 Actively Blocked 64 | . . . . . . 1 . . . . . . . . . . 5 . 1 20 1 . 2 34 Part Disruptions 5 | . . . . . . . . . . . . . . . . . . . . 2 . . . 3 Damage Taken 28572 | . 988 558 884 487 53 2412 3338 379 301 . 226 2615 151 170 . 191 2456 157 145 4545 307 396 1275 6538 Core 19849 | . 759 324 561 345 30 1624 1719 209 169 . 134 1643 115 106 . 135 1804 106 95 3347 237 291 980 5116 Absorbed by Shields 8222 | . . . . 33 . 114 . . . . . . . . . . . . . 1280 90 122 480 6103 Redirected to Core 17207 | . 602 282 429 229 30 1443 1434 199 164 . 134 1307 96 106 . 123 1571 106 95 3072 207 250 836 4492 Redirected to Shielding 30 | . . . 17 12 . 1 . . . . . . . . . . . . . . . . . . Ignored by Resistances 3793 | . . . . . . 10 390 24 27 . 20 197 21 32 . 34 467 29 24 1111 87 59 274 987 Regen/Repaired (Parts) 203 | . . . 53 . . . . . . . . 150 . . . . . . . . . . . . Core Remaining (%) 96 | 100 . 86 . . . 100 . . . . 100 . . . . 92 . . . . 100 . . . Volleys Fired 1845 | 2 86 33 104 46 9 72 160 34 30 . 19 197 13 18 . 16 167 11 11 276 16 28 89 408 Largest 3 | 2 2 2 3 3 3 2 1 1 1 . 1 1 1 1 . 1 1 1 1 1 1 1 1 1 Hottest 189 | 40 130 130 189 189 189 120 120 120 120 . 120 120 120 120 . 120 120 120 120 120 120 120 120 120 Shots Fired 2950 | 4 172 66 243 138 24 72 160 34 30 . 19 213 25 32 . 32 302 24 22 440 37 57 139 665 Gun 2940 | 4 172 66 243 138 24 68 160 34 29 . 19 212 25 32 . 31 300 24 22 439 37 57 139 665 Cannon 1 | . . . . . . 1 . . . . . . . . . . . . . . . . . . Launcher 3 | . . . . . . 3 . . . . . . . . . . . . . . . . . . Special 6 | . . . . . . . . . 1 . . 1 . . . 1 2 . . 1 . . . . Kinetic 121 | 4 116 . . . . 1 . . . . . . . . . . . . . . . . . . Thermal 2816 | . 56 66 243 138 24 64 160 34 29 . 19 212 25 32 . 31 300 24 22 439 37 57 139 665 Explosive . | . . . . . . . . . . . . . . . . . . . . . . . . . Electromagnetic 7 | . . . . . . 7 . . . . . . . . . . . . . . . . . . Robot Hit Streak 95 | 2 36 15 61 61 66 37 66 41 61 . 20 52 24 27 . 12 32 24 24 52 29 17 87 95 Robot Miss Streak 10 | . 3 5 6 2 1 2 6 3 2 . 1 10 2 4 . 4 7 2 5 6 3 4 2 7 Penetration Max 2 | . . . . . . 2 2 1 1 . 1 2 2 . . 1 2 1 1 2 2 2 2 2 Secondary Targets 16 | . 2 5 5 4 . . . . . . . . . . . . . . . . . . . . Max Gunslinging Chain 1 | . 1 1 1 1 . . . . . . . . . . . . . . . . . . . . Capacitor 771 | . . . . . . . . . . . . . . . . . . . . . . . 106 665 Autonomous 737 | . . . . . . . . . . . . 15 11 14 . 17 135 13 11 162 21 29 50 259 Shots Hit Robots 2683 | 2 135 61 191 88 20 67 137 34 28 . 19 194 24 32 . 31 288 24 20 431 37 56 126 638 Core Hits 4032 | 2 116 104 234 28 3 111 248 50 48 . 34 351 45 42 . 42 429 29 23 745 46 68 182 1052 Critical Kills . | . . . . . . . . . . . . . . . . . . . . . . . . . Critical Parts Destroyed . | . . . . . . . . . . . . . . . . . . . . . . . . . Critical Strikes 7 | . . . 1 5 . . . . . . . . . . . . . . . . . . . 1 Burn 6 | . . . 1 5 . . . . . . . . . . . . . . . . . . . . Impale 1 | . . . . . . . . . . . . . . . . . . . . . . . . 1 Melee Attacks 13 | . . . . . . . . . . . . . . . . . . . . . . . . 13 Impact . | . . . . . . . . . . . . . . . . . . . . . . . . . Slashing 9 | . . . . . . . . . . . . . . . . . . . . . . . . 9 Piercing 4 | . . . . . . . . . . . . . . . . . . . . . . . . 4 Sneak Attacks 3 | . . . . . . . . . . . . . . . . . . . . . . . . 3 Combat Hostiles . | . . . . . . . . . . . . . . . . . . . . . . . . . Follow-up Attacks . | . . . . . . . . . . . . . . . . . . . . . . . . . Damage Inflicted 171824 | 35 1724 868 3471 1668 371 3361 9370 1760 1373 . 930 12569 1566 1679 . 1637 23066 1776 1275 39933 2739 4194 7855 48604 Guns 169746 | 35 1724 868 3471 1668 371 3264 8386 1760 1373 . 930 12485 1566 1679 . 1637 22441 1776 1275 39933 2739 4194 7855 48316 Cannons . | . . . . . . . . . . . . . . . . . . . . . . . . . Explosions 1769 | . . . . . . 76 984 . . . . 84 . . . . 625 . . . . . . . Melee 288 | . . . . . . . . . . . . . . . . . . . . . . . . 288 Ramming 21 | . . . . . . 21 . . . . . . . . . . . . . . . . . . Kinetic 971 | 35 936 . . . . . . . . . . . . . . . . . . . . . . . Thermal 169335 | . 788 868 3471 1668 371 3199 8386 1760 1373 . 930 12485 1566 1679 . 1637 23066 1776 1275 39933 2739 4194 7855 48316 Explosive 919 | . . . . . . . 861 . . . . 58 . . . . . . . . . . . . Electromagnetic 290 | . . . . . . 141 123 . . . . 26 . . . . . . . . . . . . Impact . | . . . . . . . . . . . . . . . . . . . . . . . . . Slashing 160 | . . . . . . . . . . . . . . . . . . . . . . . . 160 Piercing 128 | . . . . . . . . . . . . . . . . . . . . . . . . 128 Highest Corruption 17 | . . . 2 4 4 14 1 1 1 1 1 10 10 10 10 10 . . . 15 15 2 2 17 Average Corruption 5 | . . . 1 3 4 9 1 1 1 1 1 6 10 10 10 10 . . . 8 15 2 2 7 Corruption Purged 25 | . . . . . . . . . . . . . . . . . . . . . . . . 25 Corruption Blocked . | . . . . . . . . . . . . . . . . . . . . . . . . . Effects 320 | . . . 21 15 3 24 8 5 5 2 3 17 24 16 3 26 . . . 56 14 5 13 60 Message Errors 69 | . . . 6 2 1 8 2 2 . . . 4 3 4 1 4 . . . 13 4 1 1 13 Matter Fused 73 | . . . 4 4 . 3 3 2 3 . 1 4 5 4 1 6 . . . 14 4 1 6 8 Heat Flow Errors 37 | . . . 4 2 . 4 . . 1 1 . 4 3 2 1 4 . . . 5 1 1 2 2 Energy Discharges 29 | . . . 2 3 . 1 . . 1 . . . 5 2 . 2 . . . 4 1 . 2 6 Parts Rejected 1 | . . . . 1 . . . . . . . . . . . . . . . . . . . . Parts Fused 3 | . . . . . . 1 . . . . . . . . . 1 . . . . . 1 . . Data Loss (minor) 46 | . . . 3 2 1 3 1 . . 1 . 2 4 2 . 4 . . . 9 2 . 1 11 Data Loss (major) 20 | . . . 1 1 1 1 . 1 . . . . 1 1 . 4 . . . 2 . 1 1 5 Misfires 16 | . . . 1 . . . 1 . . . 1 2 1 . . . . . . 4 . . . 6 Alerts 12 | . . . . . . 1 . . . . . . 2 1 . . . . . 2 . . . 6 Misdirections 6 | . . . . . . 1 . . . . . . . . . . . . . 1 2 . . 2 Weapon Failures 8 | . . . . . . 1 1 . . . 1 1 . . . 1 . . . 2 . . . 1 Overload Shots . | . . . . . . . . . . . . . . . . . . . . . . . . . Overflow Damage 269 | . . . . . . . 35 . . . . 23 . . . . . . . . . . . 211 Projectiles . | . . . . . . . . . . . . . . . . . . . . . . . . . Explosions 58 | . . . . . . . 35 . . . . 23 . . . . . . . . . . . . Melee 211 | . . . . . . . . . . . . . . . . . . . . . . . . 211 Knockbacks . | . . . . . . . . . . . . . . . . . . . . . . . . . Impact . | . . . . . . . . . . . . . . . . . . . . . . . . . Kinetic . | . . . . . . . . . . . . . . . . . . . . . . . . . Secondary . | . . . . . . . . . . . . . . . . . . . . . . . . . Self-Inflicted Damage 241 | . . . . . . 24 180 . . . . . . . . . 37 . . . . . . . Shots 4 | . . . . . . 1 2 . . . . . . . . . 1 . . . . . . . Rammed . | . . . . . . . . . . . . . . . . . . . . . . . . . Targets Rammed . | . . . . . . . . . . . . . . . . . . . . . . . . . Kicked . | . . . . . . . . . . . . . . . . . . . . . . . . . Crushed . | . . . . . . . . . . . . . . . . . . . . . . . . . Highest Temperature 354 | . 9 80 229 116 . 246 54 46 54 152 54 354 280 200 194 200 200 200 200 249 200 198 199 200 Average Temperature 89 | . 2 31 32 32 . 58 16 21 27 87 54 80 108 106 98 117 123 112 126 117 81 89 104 71 Received Heat Transfer 5895 | . 567 155 351 178 15 1256 612 78 57 . 18 399 45 57 . 54 465 38 21 799 46 12 126 546 Thermoelectric Energy+ 1513 | . . . . . . . . . . . . . . . . . . . . . . . . 1513 Effects 7 | . . . . . . . . . . . . 1 . . . . 3 . . . . . . 3 Shutdowns 1 | . . . . . . . . . . . . 1 . . . . . . . . . . . . Energy Bleed 1 | . . . . . . . . . . . . . . . . . 1 . . . . . . . Interference 5 | . . . . . . . . . . . . . . . . . 2 . . . . . . 3 Siege Activations . | . . . . . . . . . . . . . . . . . . . . . . . . . Martial Activations . | . . . . . . . . . . . . . . . . . . . . . . . . . Shielding Activations . | . . . . . . . . . . . . . . . . . . . . . . . . . Robots Disrupted . | . . . . . . . . . . . . . . . . . . . . . . . . . Combat Hostiles . | . . . . . . . . . . . . . . . . . . . . . . . . . Robots Corrupted . | . . . . . . . . . . . . . . . . . . . . . . . . . Combat Hostiles . | . . . . . . . . . . . . . . . . . . . . . . . . . Parts Fried 4 | . . . . . . . . . . . . . . 3 . . . . . 1 . . . . Impact Corruptions . | . . . . . . . . . . . . . . . . . . . . . . . . . Robots Melted 57 | . . . . 1 . . 8 1 1 . . 10 . . . . 9 . . 18 1 1 1 6 Combat Hostiles 56 | . . . . 1 . . 8 1 1 . . 9 . . . . 9 . . 18 1 1 1 6 Parts Melted 666 | . . . 7 12 2 18 59 10 5 . 3 92 4 5 . 4 100 3 3 175 10 22 17 115 Heat Transferred 211418 | . 1010 1080 5408 3663 816 2860 16530 3650 2825 . 1875 23698 2325 2425 . 2175 26441 1625 1425 43792 2775 4475 9056 51489 Parts Sabotaged 2 | . . . . . . . . . . . . . . . . . . . . . . . . 2 Parts Stolen 1 | . . . . . . . . 1 . . . . . . . . . . . . . . . . Parts Stripped . | . . . . . . . . . . . . . . . . . . . . . . . . . Power Chain Reactions . | . . . . . . . . . . . . . . . . . . . . . . . . . Alert | -11 -10 -10 -9 -9 -9 -9 -6 -6 -6 -6 -5 -5 -5 -5 -5 -4 -4 -4 -4 -4 -3 -3 -3 -3 ------- Run | Yrd Mat Min Mat Sto Rec Scr Fac Low Low Dat Pro Fac Upp Upp Zhi Pro Fac Upp Upp War Pro Res Qua Frg Maximum Alert Level 5 | . 2 1 4 2 2 . 5 . . . . 5 . . . . 5 . . . . 2 2 5 Low Security (%) 21 | 100 51 76 8 . . . 48 . . . . 6 . . . . 7 . . . . 34 . . Level 1 15 | . 12 23 27 26 96 . 14 . . . . 11 . . . . 7 . . . . 38 11 . Level 2 21 | . 35 . 26 73 3 . 15 . . . . 6 . . . . 12 . . . . 26 88 6 Level 3 9 | . . . 26 . . . 8 . . . . 26 . . . . 17 . . . . . . 4 Level 4 8 | . . . 10 . . . 9 . . . . 28 . . . . 12 . . . . . . 6 Level 5 20 | . . . . . . . . . . . . 21 . . . . 19 . . . . . . 81 High Security 3 | . . . . . . . 4 . . . . . . . . . 22 . . . . . . . Max Security . | . . . . . . . . . . . . . . . . . . . . . . . . . Sterilizations 1 | . . . 1 . . . . . . . . . . . . . . . . . . . . . Peak Influence 5030 | 5 639 253 1215 671 403 . 1726 . . . . 2186 . . . . 3553 . . . . 583 691 5030 Initial 506 | . . 223 65 506 252 . . . . . . 96 . . . . . . . . . 151 327 362 Average 1021 | 2 302 152 602 498 332 . 409 . . . . 1099 . . . . 1451 . . . . 313 553 2600 Influence Increases 27754 | 10 1101 295 1734 751 291 . 2407 370 261 . 344 2646 305 372 . 310 4111 240 210 4845 375 630 785 5361 Destroy 0b10 Robot/C 18600 | . 600 220 1060 420 20 . 1060 320 220 . 240 1560 280 320 . 280 2180 220 180 4260 320 300 460 4080 Destroy 0b10 Robot/NC 925 | 10 20 5 100 10 . . 130 10 5 . 5 140 15 . . . 200 . 10 55 5 60 25 120 Destroy Leader 2380 | . 132 50 284 114 . . 272 40 30 . 30 306 10 40 . 30 420 20 20 . 50 90 44 398 Allied During Kill 314 | . . 5 10 . . . . . 6 . 69 128 . 12 . . 49 . . 35 . . . . Successful Hack 267 | . 14 . 14 21 . . 119 . . . . 32 . . . . 46 . . . . 5 16 . Select Force Hacks 870 | . 260 . 220 60 270 . 60 . . . . . . . . . . . . . . . . . Disable Machine 1455 | . . . . 75 . . 510 . . . . 165 . . . . 345 . . . . 60 45 255 Anti-Garrison Action 150 | . . . . . . . . . . . . . . . . . . . . . . . . 150 Destroy Structure 1278 | . . . 1 6 1 . 106 . . . . 210 . . . . 646 . . . . 100 60 148 Partial Spotted 300 | . . . 30 45 . . 15 . . . . 30 . . . . 90 . . . . 15 75 . Lose Combat Pursuer 1215 | . 75 15 15 . . . 135 . . . . 75 . . . . 135 . . 495 . . 60 210 Influence Decreases 22724 | 10 526 702 703 1303 609 329 681 909 472 976 190 618 1142 478 1239 310 558 1505 625 2453 4415 272 724 975 Entered New Map 14574 | . . 352 103 693 395 329 . 639 226 976 . 58 808 256 1239 . . 1315 435 1873 4265 74 256 282 Time Decay 7200 | 10 526 310 550 310 214 . 521 270 246 . 190 490 334 222 . 310 468 190 190 490 150 198 318 693 Lost Part 40 | . . . 30 . . . 10 . . . . . . . . . . . . . . . . . Lost Ally 310 | . . 40 20 . . . . . . . . 70 . . . . 90 . . 90 . . . . Purge Threat 600 | . . . . 300 . . 150 . . . . . . . . . . . . . . . 150 . Squads Dispatched 149 | . 10 1 14 5 . . 27 . . . . 22 . . . . 28 . . . . 8 5 29 Investigation 42 | . 10 . 11 4 . . 6 . . . . 5 . . . . 3 . . . . 2 1 . Extermination 24 | . . . . . . . 4 . . . . 5 . . . . 3 . . . . 2 3 7 Reinforcement 33 | . . . 1 1 . . 5 . . . . 10 . . . . 7 . . . . 4 1 4 Assault 46 | . . 1 2 . . . 9 . . . . 1 . . . . 15 . . . . . . 18 Garrison 4 | . . . . . . . 3 . . . . 1 . . . . . . . . . . . . Intercept . | . . . . . . . . . . . . . . . . . . . . . . . . . Searches Triggered . | . . . . . . . . . . . . . . . . . . . . . . . . . Data Miner Redirects 3 | . . . . . . . . . . . . 1 . . . . . . . . . . . 2 Construction Impeded 4 | . . . . . . . . . . . . 2 . . . . 2 . . . . . . . Haulers Reinforced 8 | . . . . . . . 2 . . . . 3 . . . . 2 . . . . 1 . . Active Scanning Responses . | . . . . . . . . . . . . . . . . . . . . . . . . . Cargo Convoy Interrupts 2 | . . . . . . . . . . . . 1 . . . . 1 . . . . . . . Stealth | -11 -10 -10 -9 -9 -9 -9 -6 -6 -6 -6 -5 -5 -5 -5 -5 -4 -4 -4 -4 -4 -3 -3 -3 -3 --------- Run | Yrd Mat Min Mat Sto Rec Scr Fac Low Low Dat Pro Fac Upp Upp Zhi Pro Fac Upp Upp War Pro Res Qua Frg Distress Signals 22 | . 1 . 3 1 . . 4 . . . . 6 . . . . 2 . . 1 . . . 4 Communications Jammed . | . . . . . . . . . . . . . . . . . . . . . . . . . Distress Signals . | . . . . . . . . . . . . . . . . . . . . . . . . . Times Spotted 1303 | . 44 30 64 26 6 99 81 18 11 . 12 110 14 14 . 14 142 11 8 286 16 20 34 243 Peak Tracking Total 29 | . 4 11 6 7 1 29 12 4 3 . 5 10 9 7 . 4 13 5 4 19 4 6 7 17 Tactical Retreats 56 | . 4 2 1 . . 9 7 . . . . 4 . . . . 4 . . 12 . . 2 11 Traps | -11 -10 -10 -9 -9 -9 -9 -6 -6 -6 -6 -5 -5 -5 -5 -5 -4 -4 -4 -4 -4 -3 -3 -3 -3 ------- Run | Yrd Mat Min Mat Sto Rec Scr Fac Low Low Dat Pro Fac Upp Upp Zhi Pro Fac Upp Upp War Pro Res Qua Frg Traps Triggered 49 | . 4 . 5 3 . . 6 . . . . 3 . . . . 2 . . 1 . 1 2 22 Indirectly . | . . . . . . . . . . . . . . . . . . . . . . . . . Trap Hack Attempts . | . . . . . . . . . . . . . . . . . . . . . . . . . Triggered . | . . . . . . . . . . . . . . . . . . . . . . . . . Disarmed . | . . . . . . . . . . . . . . . . . . . . . . . . . Reprogrammed . | . . . . . . . . . . . . . . . . . . . . . . . . . Reused 1 | . . . . . . . . . . . . . 1 . . . . . . . . . . . Traps Extracted . | . . . . . . . . . . . . . . . . . . . . . . . . . Installed 2 | . . . . . . . . . . . . . 2 . . . . . . . . . . . Triggered 1 | . . . . . . . . . . . . . 1 . . . . . . . . . . . Most Traps Carried 2 | . . . . . . 2 2 2 2 2 2 2 2 . . . . . . . . . . . Machines | -11 -10 -10 -9 -9 -9 -9 -6 -6 -6 -6 -5 -5 -5 -5 -5 -4 -4 -4 -4 -4 -3 -3 -3 -3 ---------- Run | Yrd Mat Min Mat Sto Rec Scr Fac Low Low Dat Pro Fac Upp Upp Zhi Pro Fac Upp Upp War Pro Res Qua Frg Machines Disabled 123 | . . . . 5 . 7 34 1 1 . . 11 1 . . . 23 1 1 7 . 4 4 23 Max in Single Turn 7 | . . . . 1 . 2 7 1 1 . . 5 1 . . . 7 1 1 1 . 1 1 1 Garrison Access 8 | . . . . . . . 2 . . . . 1 . . . . 3 . . . . . 1 1 Machines Repaired . | . . . . . . . . . . . . . . . . . . . . . . . . . Machines Dismantled . | . . . . . . . . . . . . . . . . . . . . . . . . . Machines Sabotaged 6 | . 4 . 2 . . . . . . . . . . . . . . . . . . . . . Overloaded Fab Kills . | . . . . . . . . . . . . . . . . . . . . . . . . . Hacking | -11 -10 -10 -9 -9 -9 -9 -6 -6 -6 -6 -5 -5 -5 -5 -5 -4 -4 -4 -4 -4 -3 -3 -3 -3 --------- Run | Yrd Mat Min Mat Sto Rec Scr Fac Low Low Dat Pro Fac Upp Upp Zhi Pro Fac Upp Upp War Pro Res Qua Frg Machines Accessed 134 | . 11 . 14 12 10 4 19 1 . 4 . 16 . 1 3 . 16 1 1 2 1 5 9 4 Terminals 76 | . 8 . 8 9 1 . 12 1 . . . 11 . . . . 10 . . . 1 5 8 2 Fabricators 7 | . . . . . . . 2 . . . . 2 . . . . 3 . . . . . . . Repair Stations 5 | . 1 . 2 . . . . . . . . 2 . . . . . . . . . . . . Recycling Units 17 | . 2 . 2 2 9 . 2 . . . . . . . . . . . . . . . . . Scanalyzers 4 | . . . 2 . . . 1 . . . . . . . . . . . . . . . . 1 Garrison Access 9 | . . . . 1 . . 2 . . . . 1 . . . . 3 . . . . . 1 1 Total Hacks 339 | . 28 . 26 28 11 30 52 1 . 27 . 39 . 1 10 . 37 1 1 3 1 11 24 8 Successful 193 | . 13 . 13 12 10 30 21 1 . 27 . 15 . 1 10 . 15 1 1 3 1 3 14 2 Failed 143 | . 14 . 13 15 1 . 30 . . . . 24 . . . . 22 . . . . 8 10 6 Catastrophic 30 | . . . 5 2 . . 6 . . . . 5 . . . . 3 . . . . 4 3 2 Database Lockouts 3 | . 1 . . 1 . . 1 . . . . . . . . . . . . . . . . . Manual 193 | . 26 . 20 19 11 . 28 . . . . 33 1 . 1 1 21 . . 1 . 9 18 4 Terminals 196 | . 25 . 19 23 2 . 39 1 . . . 27 . . . . 22 . . . 1 11 22 4 Fabricators 21 | . . . . . . . 5 . . . . 8 . . . . 8 . . . . . . . Repair Stations 6 | . 1 . 2 . . . . . . . . 3 . . . . . . . . . . . . Recycling Units 17 | . 2 . 2 2 9 . 2 . . . . . . . . . . . . . . . . . Scanalyzers 8 | . . . 3 . . . 2 . . . . . . . . . . . . . . . . 3 Garrison Access 18 | . . . . 3 . . 4 . . . . 1 . . . . 7 . . . . . 2 1 Terminal Hacks 108 | . 3 . 2 7 1 30 9 1 . 27 . 1 . 1 10 . 2 1 1 3 1 1 7 . Record 48 | . . . . . . 24 . 1 . 11 . . . . 6 . . . 1 2 1 . 2 . Part Schematic 11 | . . . . . . . 1 . . 8 . . . . . . 2 . . . . . . . Robot Schematic 5 | . . . . . . . . . . 5 . . . . . . . . . . . . . . Robot Analysis 16 | . 3 . . 1 1 5 . . . . . 1 . . 4 . . . . . . . 1 . Prototype ID Bank 3 | . . . . . . . . . . 3 . . . . . . . . . . . . . . Open Door 8 | . . . . 3 . . . . . . . . . 1 . . . 1 . 1 . 1 1 . Level Access Points 2 | . . . 1 . . . 1 . . . . . . . . . . . . . . . . . Branch Access Points 2 | . . . 1 1 . . . . . . . . . . . . . . . . . . . . Machine Index 1 | . . . . . . . 1 . . . . . . . . . . . . . . . . . Fabricator Index 1 | . . . . . . . 1 . . . . . . . . . . . . . . . . . Scanalyzer Index 1 | . . . . . . . 1 . . . . . . . . . . . . . . . . . Alert Level 3 | . . . . . . . 1 . . . . . . . . . . . . . . . 2 . Unreport Threat 4 | . . . . 2 . . 1 . . . . . . . . . . . . . . . 1 . Hauler Manifests 1 | . . . . . . . 1 . . . . . . . . . . . . . . . . . Registered Components 1 | . . . . . . . 1 . . . . . . . . . . . . . . . . . Proto ID Catalog 1 | . . . . . . 1 . . . . . . . . . . . . . . . . . . Fabricator Hacks 8 | . . . . . . . 3 . . . . 2 . . . . 3 . . . . . . . Load Schematic 5 | . . . . . . . 2 . . . . 1 . . . . 2 . . . . . . . Build 3 | . . . . . . . 1 . . . . 1 . . . . 1 . . . . . . . Repair Station Hacks . | . . . . . . . . . . . . . . . . . . . . . . . . . Recycling Unit Hacks . | . . . . . . . . . . . . . . . . . . . . . . . . . Scanalyzer 3 | . . . 1 . . . 1 . . . . . . . . . . . . . . . . 1 Insert Component 1 | . . . . . . . . . . . . . . . . . . . . . . . . 1 Retrieve Study 2 | . . . 1 . . . 1 . . . . . . . . . . . . . . . . . Garrison Access Hacks 7 | . . . . . . . 2 . . . . 1 . . . . 3 . . . . . 1 . Seal Access 7 | . . . . . . . 2 . . . . 1 . . . . 3 . . . . . 1 . Unauthorized Hacks 67 | . 10 . 10 5 9 . 6 . . . . 11 . . . . 7 . . . . 2 6 1 Terminals 42 | . 7 . 4 3 . . 4 . . . . 9 . . . . 6 . . . . 2 6 1 Assimilate 2 | . . . . . . . . . . . . 1 . . . . 1 . . . . . . . Botnet 29 | . 2 . . 3 . . 4 . . . . 7 . . . . 5 . . . . 2 5 1 Disrupt 1 | . . . . . . . . . . . . . . . . . . . . . . . 1 . Operators 1 | . . . . . . . . . . . . 1 . . . . . . . . . . . . Sabotage 7 | . 4 . 3 . . . . . . . . . . . . . . . . . . . . . Search 2 | . 1 . 1 . . . . . . . . . . . . . . . . . . . . . Fabricators 2 | . . . . . . . . . . . . 1 . . . . 1 . . . . . . . Haulers 2 | . . . . . . . . . . . . 1 . . . . 1 . . . . . . . Repair Stations 4 | . 1 . 2 . . . . . . . . 1 . . . . . . . . . . . . Patch 4 | . 1 . 2 . . . . . . . . 1 . . . . . . . . . . . . Recycling Units 17 | . 2 . 2 2 9 . 2 . . . . . . . . . . . . . . . . . Tunnel 17 | . 2 . 2 2 9 . 2 . . . . . . . . . . . . . . . . . Scanalyzers 2 | . . . 2 . . . . . . . . . . . . . . . . . . . . . Extract 2 | . . . 2 . . . . . . . . . . . . . . . . . . . . . Garrison Access . | . . . . . . . . . . . . . . . . . . . . . . . . . Data Cores Recovered 10 | . . . 1 . . . 3 . . . . 2 . . . . 3 . . . . . 1 . Used 3 | . . . . . . . . . . . . . . . . . 2 . . . . . 1 . Hacking Detections 72 | . 5 . 6 5 1 . 16 . . . . 12 . . . . 14 . . . . 5 4 4 Full Trace Events 15 | . . . 2 3 . . 3 . . . . 3 . . . . 3 . . . . 1 . . Feedback Events 1 | . . . 1 . . . . . . . . . . . . . . . . . . . . . Corruption 1 | . . . 1 . . . . . . . . . . . . . . . . . . . . . Feedback Blocked . | . . . . . . . . . . . . . . . . . . . . . . . . . Robot Schematics Acquired 10 | . . . . . . . . . . 5 . . . . . . . . . . . . 1 4 Robots Built . | . . . . . . . . . . . . . . . . . . . . . . . . . Authchips . | . . . . . . . . . . . . . . . . . . . . . . . . . Time . | . . . . . . . . . . . . . . . . . . . . . . . . . Total Robot Build Rating . | . . . . . . . . . . . . . . . . . . . . . . . . . Part Schematics Acquired 83 | . . . 13 . . 2 28 . 3 8 1 5 1 . 1 2 5 . . . . . 2 12 Parts Built 4 | . . . . . . . 2 . . . . 1 . . . . 1 . . . . . . . Authchips . | . . . . . . . . . . . . . . . . . . . . . . . . . Time 205 | . . . . . . . 36 . . . . 93 . . . . 76 . . . . . . . Total Part Build Rating 18 | . . . . . . . 6 . . . . 7 . . . . 5 . . . . . . . Part Studies Acquired 2 | . . . 1 . . . 1 . . . . . . . . . . . . . . . . . Parts Repaired . | . . . . . . . . . . . . . . . . . . . . . . . . . Time . | . . . . . . . . . . . . . . . . . . . . . . . . . Parts Recycled . | . . . . . . . . . . . . . . . . . . . . . . . . . Recycled Matter . | . . . . . . . . . . . . . . . . . . . . . . . . . Retrieved Matter . | . . . . . . . . . . . . . . . . . . . . . . . . . Retrieved Components . | . . . . . . . . . . . . . . . . . . . . . . . . . Parts Scanalyzed . | . . . . . . . . . . . . . . . . . . . . . . . . . Part Schematics Acquired . | . . . . . . . . . . . . . . . . . . . . . . . . . Parts Damaged . | . . . . . . . . . . . . . . . . . . . . . . . . . Bothacking | -11 -10 -10 -9 -9 -9 -9 -6 -6 -6 -6 -5 -5 -5 -5 -5 -4 -4 -4 -4 -4 -3 -3 -3 -3 ------------ Run | Yrd Mat Min Mat Sto Rec Scr Fac Low Low Dat Pro Fac Upp Upp Zhi Pro Fac Upp Upp War Pro Res Qua Frg Used RIF Installer . | . . . . . . . . . . . . . . . . . . . . . . . . . Robots Hacked 4 | . . . . . . . . . . . . 1 . . . 1 1 . . 1 . . . . Non-combat 1 | . . . . . . . . . . . . 1 . . . . . . . . . . . . Combat 1 | . . . . . . . . . . . . . . . . . . . . 1 . . . . Robot Hacks Applied 2 | . . . . . . . . . . . . 1 . . . . . . . 1 . . . . parse_system 1 | . . . . . . . . . . . . . . . . . . . . 1 . . . . find_chute 1 | . . . . . . . . . . . . 1 . . . . . . . . . . . . Manual 2 | . . . . . . . . . . . . . . . . 1 1 . . . . . . . Relay Couplers Released 2 | . . . . . . . 2 . . . . . . . . . . . . . . . . . Programmers 2 | . . . . . . . 2 . . . . . . . . . . . . . . . . . Fabnet Peak Effective % . | . . . . . . . . . . . . . . . . . . . . . . . . . Robots Rewired 12 | . . . . . . . . . 3 . . . 2 2 . . . . . 5 . . . . Allies Hacked 1 | . . . . . . . . . . . . . . . . . . . . 1 . . . . Hacks Repelled . | . . . . . . . . . . . . . . . . . . . . . . . . . Allies | -11 -10 -10 -9 -9 -9 -9 -6 -6 -6 -6 -5 -5 -5 -5 -5 -4 -4 -4 -4 -4 -3 -3 -3 -3 -------- Run | Yrd Mat Min Mat Sto Rec Scr Fac Low Low Dat Pro Fac Upp Upp Zhi Pro Fac Upp Upp War Pro Res Qua Frg Total Allies 19 | . . 3 . . . . . . 3 . . 1 2 2 . 1 2 . . 5 . . . . Largest Group 5 | . . 2 1 . . . . . 3 3 3 3 2 4 4 5 5 . . 5 . . . . Highest-Rated Group 293 | . . 45 31 . . . . . 87 87 87 84 79 138 138 254 254 . . 293 . . . . Highest-Rated Ally 116 | . . 31 31 . . . . . 29 29 29 29 49 49 49 116 116 . . 68 . . . . Total Orders 12 | . . . . . . . . . . . . 2 . . . . 2 . . 8 . . . . STAY 8 | . . . . . . . . . . . . 1 . . . . 1 . . 6 . . . . FOLLOW 4 | . . . . . . . . . . . . 1 . . . . 1 . . 2 . . . . Ally Attacks 156 | . . 16 15 . . . . . . . 9 42 . 2 . . 33 . . 39 . . . . Total Damage 3817 | . . 163 187 . . . . . . . 94 555 . 67 . . 1674 . . 1077 . . . . Kills 32 | . . 2 5 . . . . . . . 2 5 . 1 . . 11 . . 6 . . . . Allies Corrupted 1 | . . . . . . . . . . . . . . . . . . . . 1 . . . . Allies Melted 13 | . . . . . . 13 . . . . . . . . . . . . . . . . . . Intel | -11 -10 -10 -9 -9 -9 -9 -6 -6 -6 -6 -5 -5 -5 -5 -5 -4 -4 -4 -4 -4 -3 -3 -3 -3 ------- Run | Yrd Mat Min Mat Sto Rec Scr Fac Low Low Dat Pro Fac Upp Upp Zhi Pro Fac Upp Upp War Pro Res Qua Frg Active Infowar (turns) 7564 | 15 1471 690 1585 698 456 1865 . . . . . 1 . . . . 2 . . 1 . 1 . 779 Optics 1 | . . . . . . . . . . . . . . . . . . . . 1 . . . . Terrain 5652 | 15 1227 690 1585 698 456 981 . . . . . . . . . . . . . . . . . . Seismic 6777 | 12 1471 690 1585 698 456 1865 . . . . . . . . . . . . . . . . . . T.N.C. 3280 | . . . 1525 698 456 601 . . . . . . . . . . . . . . . . . . Triangulation 1 | . . . . . . . . . . . . 1 . . . . . . . . . . . . Cloaking 779 | . . . . . . . . . . . . . . . . . . . . . . . . 779 Jamming 2 | . . . . . . . . . . . . . . . . . 2 . . . . . . . ECM 1 | . . . . . . . . . . . . . . . . . . . . . . 1 . . Robot Analysis Total 16 | . 3 . . 1 1 5 . . . . . 1 . . 4 . . . . . . . 1 . Derelict Logs Recovered 16 | . . 2 . . . . . 1 2 . 1 . 3 2 . 2 . 1 2 . . . . . Drone Launches . | . . . . . . . . . . . . . . . . . . . . . . . . . Drone Recoveries . | . . . . . . . . . . . . . . . . . . . . . . . . . Exploration | -11 -10 -10 -9 -9 -9 -9 -6 -6 -6 -6 -5 -5 -5 -5 -5 -4 -4 -4 -4 -4 -3 -3 -3 -3 ------------- Run | Yrd Mat Min Mat Sto Rec Scr Fac Low Low Dat Pro Fac Upp Upp Zhi Pro Fac Upp Upp War Pro Res Qua Frg Turns Passed 23645 | 41 1472 696 1585 698 456 2010 2633 597 533 46 396 1296 751 465 104 823 1580 387 393 2385 315 418 707 2858 Spaces Moved 33593 | 33 1028 574 1278 745 758 3170 2315 1228 937 89 841 1942 1150 982 153 1178 2371 1070 1089 3343 781 1049 1437 4052 Core 5 | 5 . . . . . . . . . . . . . . . . . . . . . . . . Treads . | . . . . . . . . . . . . . . . . . . . . . . . . . Legs . | . . . . . . . . . . . . . . . . . . . . . . . . . Wheels 1759 | 28 1028 574 129 . . . . . . . . . . . . . . . . . . . . . Hover 31828 | . . . 1149 745 758 3170 2315 1228 937 89 841 1942 1150 982 153 1178 2371 1070 1089 3343 781 1049 1437 4051 Flight 1 | . . . . . . . . . . . . . . . . . . . . . . . . 1 Fastest Speed 16 | 50 80 80 52 52 52 52 40 40 40 40 36 33 33 33 33 33 33 33 33 16 33 30 30 16 Average Speed 43 | 75 80 80 55 52 52 52 86 40 40 40 36 34 33 33 33 33 33 33 33 31 33 30 30 36 Slowest Speed 130 | 80 80 80 130 52 112 112 112 40 40 40 40 88 33 33 33 33 98 33 33 86 33 33 30 103 Overloaded Moves 237 | . . . . . . . . . . . . . . . . . . . . 121 . . . 116 Propulsion Burnouts . | . . . . . . . . . . . . . . . . . . . . . . . . . Robots Hopped . | . . . . . . . . . . . . . . . . . . . . . . . . . Potential Cave-ins 6 | . . . . . . . . . . . . . . . . . . . . 6 . . . . Cave-ins Triggered . | . . . . . . . . . . . . . . . . . . . . . . . . . Teleports 1 | . . . . . . . . . . . . . . . . . . . . . . . . 1 Exploration Rate (%) 81 | 3 97 98 85 94 98 84 53 98 98 68 96 55 97 98 59 98 54 98 98 98 96 28 96 80 Regions Visited 24 Branch Regions 18 Pre-discovered Areas 25 | . 2 1 2 2 9 1 2 . 1 1 . . . . 3 1 . . . . . . . . Known Exits Taken 20 | . . . 1 1 1 1 1 1 1 1 1 1 1 1 1 1 1 1 1 1 1 1 . . Unknown Exits Taken 4 | 1 1 1 . . . . . . . . . . . . . . . . . . . . 1 . Scrap Searched 32 | . . . . . . 6 . 5 2 . 3 . 4 . . 1 . 5 3 . 3 . . . Spaces Dug 109 | . . . . . . 4 8 . 1 . . 12 2 1 . . 39 1 . 8 . 27 6 . Terrain Destroyed 895 | . . . . . 1 9 106 6 10 . 4 112 11 14 . 16 278 11 10 121 23 60 30 73 Melee . | . . . . . . . . . . . . . . . . . . . . . . . . . Projectile 366 | . . . . . . . . . . . . 10 9 13 . 14 107 8 9 83 21 16 19 57 AOE 288 | . . . . . . . 76 . . . . 67 . . . . 114 . . 16 . 15 . . Terrain Rammed 1 | . . . . . . 1 . . . . . . . . . . . . . . . . . . Walls Destroyed . | . . . . . . . . . . . . . . . . . . . . . . . . . Machines Disabled 1 | . . . . . . 1 . . . . . . . . . . . . . . . . . . Actions | -11 -10 -10 -9 -9 -9 -9 -6 -6 -6 -6 -5 -5 -5 -5 -5 -4 -4 -4 -4 -4 -3 -3 -3 -3 --------- Run | Yrd Mat Min Mat Sto Rec Scr Fac Low Low Dat Pro Fac Upp Upp Zhi Pro Fac Upp Upp War Pro Res Qua Frg Total 41208 | 41 1513 745 1940 950 794 3430 2767 1299 1063 98 912 2431 1514 1109 203 1601 3060 1096 1114 4494 826 1124 1694 5390 Wait 3699 | . 332 123 466 104 18 15 156 8 43 10 30 154 308 64 41 401 350 7 4 553 10 13 75 414 Move 33569 | 32 1027 573 1277 744 757 3169 2314 1227 936 88 840 1941 1149 981 152 1177 2370 1069 1088 3342 780 1048 1436 4052 Hop . | . . . . . . . . . . . . . . . . . . . . . . . . . Pick Up 51 | . 6 1 3 . . 10 2 1 . . . . 3 . . . 2 . . 12 . . 2 9 Fast Attach 112 | 7 3 . 7 1 . 23 9 3 . . 4 6 5 . 2 . 6 . 1 4 . . 5 26 Attach 20 | . 2 . 2 . . 4 1 . . . . . 3 . . . . . . 4 . . . 4 Detach 12 | . . . . . 1 4 . . . . . 2 . . . . . . . 4 . . . 1 Swap 242 | . 7 . 20 6 2 8 21 4 4 . 4 25 2 5 6 3 19 . 1 28 2 9 10 56 Drop 141 | . 3 1 11 2 2 31 8 5 . . 2 12 7 1 2 . 6 . . 17 . 4 6 21 Fire 1845 | 2 86 33 104 46 9 72 160 34 30 . 19 197 13 18 . 16 167 11 11 276 16 28 89 408 Melee 13 | . . . . . . . . . . . . . . . . . . . . . . . . 13 Ram 1 | . . . . . . 1 . . . . . . . . . . . . . . . . . . Kick . | . . . . . . . . . . . . . . . . . . . . . . . . . Crush . | . . . . . . . . . . . . . . . . . . . . . . . . . Escape Stasis 139 | . . . . 21 . . 1 . . . . . . . . . . . . . . . . 117 Rewire 72 | . . . . . . . . . 29 . 1 . 10 8 . . . . 1 23 . . . . Trap 2 | . . . . . . . . . . . . . 2 . . . . . . . . . . . Miscellaneous 1290 | . 47 14 50 26 5 93 95 17 21 . 12 94 12 32 . 4 140 9 8 231 18 22 71 269 Route ------- -11/Scrapyard -10/Materials (discovered 4 exits: *Mat x3 / [*Min]) -10/Mines (discovered 4 exits: *Mat x2 / [*Exi] / [*Sub]) -9/Materials (discovered 6 exits: *Mat x3 / *Min x2 / *Sto) -9/Storage (discovered 2 exits: *Mat / *Rec) -9/Recycling (discovered 2 exits: [*Fac] / *Scr) -9/Scraptown (discovered 2 exits: *Fac x2) -6/Factory (discovered 5 exits: *Fac x4 / *Low) -6/Lower Caves -6/Lower Caves (discovered 2 exits: *Fac / *Dat) -6/Data Miner -5/Proximity Caves -5/Factory (discovered 4 exits: *Fac x3 / *Upp) -5/Upper Caves -5/Upper Caves (discovered 2 exits: *Fac / *Zhi) -5/Zhirov -4/Proximity Caves -4/Factory (discovered 3 exits: *Res x2 / *Upp) -4/Upper Caves -4/Upper Caves (discovered 2 exits: *Res / *War) -4/Warlord -3/Proximity Caves -3/Research (discovered 2 exits: Res / *Qua) -3/Quarantine (discovered 3 exits: *Res / [*Sec] / *Frg) -3/Protoforge (discovered 1 exit: *Res) History --------- Turn | Location | Event 1 | -11/Scrapyard | Upgraded with Propulsion slot (x1) 1 | -11/Scrapyard | Upgraded with Utility slot (x1) 1 | -11/Scrapyard | Upgraded with Weapon slot (x1) 18 | -11/Scrapyard | Discovered new exit (range 15) 42 | -11/Scrapyard | Entered Materials 255 | -10/Materials | Core integrity fell below 50% 272 | -10/Materials | Discovered new exit (range 8) 317 | -10/Materials | Build established: Mutant 601 | -10/Materials | Reached level 2 626 | -10/Materials | Upgraded with Utility slot (x1) 806 | -10/Materials | Central database locked down 943 | -10/Materials | Reached level 3 961 | -10/Materials | Upgraded with Propulsion slot (x1) 976 | -10/Materials | Discovered new exit (range 8) 1087 | -10/Materials | Discovered new exit (range 12) 1143 | -10/Materials | Reached level 4 1172 | -10/Materials | Upgraded with Utility slot (x1) 1233 | -10/Materials | Discovered new exit (range 6) 1514 | -10/Materials | Entered Mines 1606 | -10/Mines | Discovered new exit (range 5) 1626 | -10/Mines | Learned location of Storage (-9) 1666 | -10/Mines | Assembled infested the area 1736 | -10/Mines | Destroyed 7 combat bots 1860 | -10/Mines | Deemed a non-threat by the Exiles lab entrance 1860 | -10/Mines | Discovered new exit (range 5) 1883 | -10/Mines | Received a Rocket Launcher from a helpful Derelict 1933 | -10/Mines | Reached level 5 2012 | -10/Mines | Discovered new exit (range 6) 2041 | -10/Mines | Discovered new exit (range 4) 2042 | -10/Mines | Met a Derelict testing a Signal Generator 2210 | -10/Mines | Entered Materials 2210 | -9/Materials | Accompanied by 1 ally 2210 | -9/Materials | Discovered new exit (range 8) 2212 | -9/Materials | Reached level 6 2270 | -9/Materials | Upgraded with Utility slot (x1) 2339 | -9/Materials | Reached level 7 2557 | -9/Materials | Build established: Scavenger-Mutant 2632 | -9/Materials | Reached level 8 2660 | -9/Materials | Discovered new exit (range 16) 2664 | -9/Materials | Upgraded with Power slot (x1) 2664 | -9/Materials | Upgraded with Utility slot (x1) 3002 | -9/Materials | Discovered new exit (range 3) 3010 | -9/Materials | First assault squad dispatched 3038 | -9/Materials | Reached level 9 3221 | -9/Materials | Upgraded with Weapon slot (x1) 3527 | -9/Materials | Build established: Scavenger-Tank 3601 | -9/Materials | Discovered new exit (range 4) 3647 | -9/Materials | Identified exit to Materials 3649 | -9/Materials | Sterilization system engaged 3649 | -9/Materials | Non-combat units ordered to evacuate 3672 | -9/Materials | Identified exit to Mines 3672 | -9/Materials | Identified exit to Storage 3718 | -9/Materials | Reached level 10 3749 | -9/Materials | Combat units ordered to evacuate 3795 | -9/Materials | Entered Storage 3842 | -9/Storage | Identified exit to Recycling 4005 | -9/Storage | Discovered exit to Materials (range 14) 4260 | -9/Storage | Build established: Scavenger-Gunner 4265 | -9/Storage | Met 01-MTF 4288 | -9/Storage | Reached level 11 4340 | -9/Storage | Used back door to open Recycling access 4401 | -9/Storage | Central database locked down 4493 | -9/Storage | Entered Recycling 4493 | -9/Recycling | Accompanied by 1 ally (01-MTF) 4565 | -9/Recycling | Discovered new exit (range 12) 4688 | -9/Recycling | Scanned before Scraplab entrance 4710 | -9/Recycling | Found Prototype Energy Gun 4710 | -9/Recycling | Identified KN-7UR's Autopenetrator 4944 | -9/Recycling | Entered Scraplab 4948 | -9/Recycling | Discovered new exit (range 2) 4948 | -9/Recycling | Identified exit to Scraptown 4949 | -9/Recycling | Entered Scraptown 4969 | -9/Scraptown | Heard Great Nut preacher, LISTEN AND RECITE! 5013 | -9/Scraptown | System corruption cleaned by C-Scrubber 5020 | -9/Scraptown | Build established: Scavenger-Mutant 5119 | -9/Scraptown | Visited Cyclists 5221 | -9/Scraptown | Visited SPCMW 5228 | -9/Scraptown | Visited Comm Corps 5264 | -9/Scraptown | Visited Assassins FH 5272 | -9/Scraptown | Visited Red Mages 5312 | -9/Scraptown | Visited UFD Registry 5312 | -9/Scraptown | Registered with UFD as "Bulletslider" 5329 | -9/Scraptown | Entered Cyclist Reading Room 5366 | -9/Scraptown | Visited LU-1G1's Boring Crew 5375 | -9/Scraptown | Visited Curators Association 5392 | -9/Scraptown | Visited Observation Area 5412 | -9/Scraptown | Visited Derelict Rescue Squad 5424 | -9/Scraptown | Visited DA-N13 Charitable Foundation 5426 | -9/Scraptown | Found DCF Scrap (30 items) 5438 | -9/Scraptown | Visited Analyses Database 5451 | -9/Scraptown | Visited Scrapoid Research Area 5462 | -9/Scraptown | Visited Scrap Suit Storage 5470 | -9/Scraptown | Build established: Scavenger-Gunner 5470 | -9/Scraptown | Visited Science Guys 5503 | -9/Scraptown | Received an X-ray algorithm 5587 | -9/Scraptown | Visited Junk Cannon Lab 5593 | -9/Scraptown | Found Prototype Special Weapon 5593 | -9/Scraptown | Identified Junk Cannon 5782 | -9/Scraptown | Discovered new exit (range 3) 5783 | -9/Scraptown | Identified exit to Factory 5875 | -9/Scraptown | Build established: Gunner 6275 | -9/Scraptown | Met Optimus 6275 | -9/Scraptown | Accepted into 0bPrime 6309 | -9/Scraptown | Civil war broke out across Scraptown 6382 | -9/Scraptown | Found MA-1KR's Cyclogen 6446 | -9/Scraptown | System corruption reached 10% 6447 | -9/Scraptown | Found Prototype Special Weapon 6453 | -9/Scraptown | Lost 11 allies 6538 | -9/Scraptown | Destroyed 17 combat bots 6726 | -9/Scraptown | Lost 4 allies 6744 | -9/Scraptown | Optimus destroyed in the chaos of civil war 6761 | -9/Scraptown | Core integrity fell below 50% 6771 | -9/Scraptown | Core integrity fell below 20% 6822 | -9/Scraptown | Identified LU-1G1's Laser Shovel 6841 | -9/Scraptown | Found Damper Plating 6874 | -9/Scraptown | Lost 5 allies 6943 | -9/Scraptown | Destroyed 13 combat bots 6959 | -9/Scraptown | Entered Factory 6961 | -6/Factory | Reached level 12 6997 | -6/Factory | Build established: Mutant 7039 | -6/Factory | Upgraded with Propulsion slot (x1) 7177 | -6/Factory | Discovered new exit (range 5) 7232 | -6/Factory | Tech Extrapolator generated special schematic: Machine Rigger 7265 | -6/Factory | Fabricated Adv. Weight Redist. System (x2) 7422 | -6/Factory | Tech Extrapolator generated special schematic: Deep Structural Scanner 7485 | -6/Factory | Reached level 13 7615 | -6/Factory | Build established: Gunner 7708 | -6/Factory | Discovered new exit (range 7) 7796 | -6/Factory | Identified exit to Factory 7920 | -6/Factory | Spotted B-75 Beast 7922 | -6/Factory | Build established: Hacker-Gunner 8031 | -6/Factory | Destroyed 7 combat bots 8042 | -6/Factory | Reached level 14 8133 | -6/Factory | Destroyed B-75 Beast 8249 | -6/Factory | Upgraded with Propulsion slot (x1) 8572 | -6/Factory | Garrison activated, responded to threat 8580 | -6/Factory | Reached level 15 8701 | -6/Factory | Central database locked down 8709 | -6/Factory | First assault squad dispatched 8830 | -6/Factory | Tech Extrapolator generated special schematic: Energy Deflector 9011 | -6/Factory | Reached level 16 9012 | -6/Factory | Upgraded with Utility slot (x1) 9044 | -6/Factory | Identified exit to Lower Caves 9220 | -6/Factory | Reached level 17 9226 | -6/Factory | Tech Extrapolator generated special schematic: Mak. Core Shielding 9230 | -6/Factory | Core integrity fell below 50% 9278 | -6/Factory | Destroyed 15 combat bots 9431 | -6/Factory | Reached level 18 9476 | -6/Factory | Garrison activated, responded to threat 9484 | -6/Factory | High security lockdown imminent 9564 | -6/Factory | High security lockdown engaged 9592 | -6/Factory | Entered Lower Caves 9695 | -6/Lower Caves | Learned Factory emergency access door positions 9711 | -6/Lower Caves | Attracted the attention of an 0b10 checkpoint 9762 | -6/Lower Caves | Reached level 19 9848 | -6/Lower Caves | Build established: Scavenger-Tank 9889 | -6/Lower Caves | Discovered new exit (range 16) 9894 | -6/Lower Caves | Identified exit to Lower Caves 9909 | -6/Lower Caves | Upgraded with Propulsion slot (x1) 9909 | -6/Lower Caves | Upgraded with Utility slot (x1) 10189 | -6/Lower Caves | Entered another Lower Caves area 10204 | -6/Lower Caves | Discovered exit to Factory (range 13) 10211 | -6/Lower Caves | Encountered a Warlord checkpoint 10244 | -6/Lower Caves | Attacked by a delusional Derelict stockpiling Unaware 10260 | -6/Lower Caves | Build established: Hacker-Tank 10390 | -6/Lower Caves | Tech Extrapolator generated special schematic: Fire Trap 10400 | -6/Lower Caves | Discovered new exit (range 9) 10404 | -6/Lower Caves | Identified exit to Data Miner 10468 | -6/Lower Caves | Spotted B-75 Beast 10478 | -6/Lower Caves | Destroyed B-75 Beast 10482 | -6/Lower Caves | Learned Factory emergency access door positions 10491 | -6/Lower Caves | Attracted the attention of an 0b10 checkpoint 10581 | -6/Lower Caves | Build established: Scavenger-Tank 10630 | -6/Lower Caves | Tech Extrapolator generated special schematic: Heat Bomb Trap 10722 | -6/Lower Caves | Entered Data Miner 10722 | -6/Data Miner | Accompanied by 3 allies 10722 | -6/Data Miner | Discovered new exit (range 6) 10730 | -6/Data Miner | Met Data Miner 10743 | -6/Data Miner | Learned location of Section 7 (-3) 10743 | -6/Data Miner | Acquired the access code to Warlord's prototype stash 10748 | -6/Data Miner | Received God Mode back door access code from Data Miner 10757 | -6/Data Miner | Identified exit to Proximity Caves 10768 | -6/Data Miner | Entered Proximity Caves 10768 | -5/Proximity Caves | Accompanied by 3 allies 10770 | -5/Proximity Caves | Attracted the attention of an 0b10 checkpoint 10770 | -5/Proximity Caves | Reached level 20 10878 | -5/Proximity Caves | Reached level 21 10903 | -5/Proximity Caves | Destroyed 8 combat bots 11029 | -5/Proximity Caves | Upgraded with Utility slot (x1) 11045 | -5/Proximity Caves | Learned Factory interactive machine intel 11103 | -5/Proximity Caves | Discovered exit to Factory (range 11) 11164 | -5/Proximity Caves | Entered Factory 11164 | -5/Factory | Accompanied by 3 allies 11166 | -5/Factory | Loaded intel: 54 interactive machine locations 11238 | -5/Factory | Discovered new exit (range 12) 11319 | -5/Factory | Build established: Scavenger-Gunner 11328 | -5/Factory | Fabricated Energy Deflector (x1) 11338 | -5/Factory | Identified exit to Factory 11359 | -5/Factory | Reached level 22 11385 | -5/Factory | Destroyed 7 combat bots 11438 | -5/Factory | Destroyed 8 combat bots 11454 | -5/Factory | Discovered exit to Factory (range 16) 11515 | -5/Factory | Destroyed 7 combat bots 11762 | -5/Factory | Spotted B-75 Beast 11773 | -5/Factory | Destroyed B-75 Beast 11823 | -5/Factory | Reached level 23 11881 | -5/Factory | Discovered exit to Factory (range 13) 11889 | -5/Factory | Garrison activated, responded to threat 12037 | -5/Factory | Cargo convoy interrupted 12054 | -5/Factory | Core integrity fell below 50% 12062 | -5/Factory | Build established: Hacker-Sprinter 12065 | -5/Factory | Core integrity fell below 20% 12093 | -5/Factory | Destroyed 7 combat bots 12116 | -5/Factory | Upgraded with Weapon slot (x1) 12241 | -5/Factory | Discovered new exit (range 11) 12364 | -5/Factory | First assault squad dispatched 12379 | -5/Factory | Incoming assault squad redirected 12436 | -5/Factory | System corruption reached 10% 12441 | -5/Factory | Identified exit to Upper Caves 12460 | -5/Factory | Entered Upper Caves 12474 | -5/Upper Caves | Attracted the attention of an 0b10 outpost 12492 | -5/Upper Caves | Reached level 24 12519 | -5/Upper Caves | Destroyed 9 combat bots 12535 | -5/Upper Caves | Learned Factory security intel 12632 | -5/Upper Caves | Learned Factory garrison access intel 12707 | -5/Upper Caves | Attracted the attention of an 0b10 checkpoint 12715 | -5/Upper Caves | Learned 4 Factory zone layouts 12850 | -5/Upper Caves | Acquired the password to a Derelict Tinkerer's latest research 12851 | -5/Upper Caves | Upgraded with Weapon slot (x1) 12863 | -5/Upper Caves | Found Prototype Special Weapon 13112 | -5/Upper Caves | Identified Molecular Deconstructor 13167 | -5/Upper Caves | Discovered new exit (range 6) 13168 | -5/Upper Caves | Identified exit to Upper Caves 13211 | -5/Upper Caves | Entered another Upper Caves area 13211 | -5/Upper Caves | Accompanied by 2 allies 13229 | -5/Upper Caves | Discovered exit to Factory (range 9) 13242 | -5/Upper Caves | Encountered a Warlord checkpoint 13341 | -5/Upper Caves | Learned 4 Factory zone layouts 13526 | -5/Upper Caves | Attracted the attention of an 0b10 outpost 13550 | -5/Upper Caves | Destroyed 11 combat bots 13554 | -5/Upper Caves | Discovered new exit (range 9) 13556 | -5/Upper Caves | Identified exit to Zhirov 13676 | -5/Upper Caves | Entered Zhirov 13676 | -5/Zhirov | Accompanied by 4 allies 13677 | -5/Zhirov | Discovered new exit (range 3) 13695 | -5/Zhirov | Found Alien Artifact 13695 | -5/Zhirov | Identified Integrated Reactor 13695 | -5/Zhirov | Installed Integrated Reactor, increased core energy generation (+10) 13724 | -5/Zhirov | Ran an X-ray algorithm 13739 | -5/Zhirov | Identified exit to Proximity Caves 13780 | -5/Zhirov | Entered Proximity Caves 13780 | -4/Proximity Caves | Accompanied by 4 allies 13838 | -4/Proximity Caves | Attracted the attention of an 0b10 checkpoint 13868 | -4/Proximity Caves | Ran an X-ray algorithm 13918 | -4/Proximity Caves | Spotted B-86 Titan 13979 | -4/Proximity Caves | Reached level 25 14112 | -4/Proximity Caves | Received a Behemoth hack from an annoying Tinkerer 14265 | -4/Proximity Caves | Learned Research terminal intel 14336 | -4/Proximity Caves | Befriended a Behemoth using the annoying Tinkerer's hack 14353 | -4/Proximity Caves | Discovered exit to Factory (range 5) 14603 | -4/Proximity Caves | Entered Factory 14603 | -4/Factory | Accompanied by 5 allies 14607 | -4/Factory | Loaded intel: 3 garrison access locations 14827 | -4/Factory | Reached level 26 14836 | -4/Factory | Upgraded with Utility slot (x1) 14996 | -4/Factory | Spotted B-86 Titan 14999 | -4/Factory | Befriended a Behemoth using the annoying Tinkerer's hack 15011 | -4/Factory | Discovered new exit (range 3) 15011 | -4/Factory | Identified exit to Research 15114 | -4/Factory | Fabricated Multireflex Exoskeleton? 15135 | -4/Factory | Build established: Scavenger-Sprinter 15276 | -4/Factory | Spotted B-86 Titan 15284 | -4/Factory | Destroyed B-86 Titan 15353 | -4/Factory | First assault squad dispatched 15368 | -4/Factory | Discovered exit to Research (range 10) 15450 | -4/Factory | Build established: Hacker-Sprinter 15541 | -4/Factory | Discovered new exit (range 7) 15543 | -4/Factory | Identified exit to Upper Caves 15712 | -4/Factory | Reached level 27 15722 | -4/Factory | Cargo convoy interrupted 15753 | -4/Factory | Core integrity fell below 50% 15800 | -4/Factory | Destroyed 18 combat bots 15808 | -4/Factory | Found Prototype Device 15808 | -4/Factory | Identified Exp. Transmission Jammer 15818 | -4/Factory | Found Prototype Device 15818 | -4/Factory | Identified Exp. Focal Shield 15825 | -4/Factory | High security lockdown imminent 15905 | -4/Factory | High security lockdown engaged 16010 | -4/Factory | Destroyed 7 combat bots 16163 | -4/Factory | Destroyed 26 combat bots 16183 | -4/Factory | Entered Upper Caves 16184 | -4/Upper Caves | Learned Research terminal intel 16254 | -4/Upper Caves | Encountered a Warlord checkpoint 16257 | -4/Upper Caves | Spotted B-86 Titan 16266 | -4/Upper Caves | Destroyed B-86 Titan 16286 | -4/Upper Caves | Reached level 28 16310 | -4/Upper Caves | Discovered new exit (range 14) 16316 | -4/Upper Caves | Identified exit to Upper Caves 16366 | -4/Upper Caves | Attracted the attention of an 0b10 checkpoint 16542 | -4/Upper Caves | Attacked by a delusional Derelict stockpiling parts 16570 | -4/Upper Caves | Entered another Upper Caves area 16582 | -4/Upper Caves | Discovered exit to Research (range 14) 16636 | -4/Upper Caves | Learned Research stockpile data 16644 | -4/Upper Caves | Attracted the attention of an 0b10 checkpoint 16676 | -4/Upper Caves | Found Alien Artifact 16676 | -4/Upper Caves | Identified Dimensional Node Initializer 16676 | -4/Upper Caves | Initialized slip node 16695 | -4/Upper Caves | Encountered a Warlord checkpoint 16770 | -4/Upper Caves | Spotted B-86 Titan 16772 | -4/Upper Caves | Destroyed B-86 Titan 16815 | -4/Upper Caves | Discovered new exit (range 7) 16816 | -4/Upper Caves | Identified exit to Warlord 16831 | -4/Upper Caves | Learned location of 1 exit from Research 16963 | -4/Upper Caves | Entered Warlord 17029 | -4/Warlord | Opened Warlord's prototype stash 17213 | -4/Warlord | Warlord's base attacked by MAIN.C 17265 | -4/Warlord | Found Prototype Piercing Weapon 17265 | -4/Warlord | Identified Vortex Lance 17267 | -4/Warlord | Found Prototype Energy Gun 17267 | -4/Warlord | Identified Vortex Shotgun 17298 | -4/Warlord | Rebuked by Warlord 17323 | -4/Warlord | Upgraded with Power slot (x1) 17345 | -4/Warlord | Found Prototype Reactor 17345 | -4/Warlord | Identified Vortex Chain Reactor 17358 | -4/Warlord | Found Prototype Processor 17358 | -4/Warlord | Identified Exp. Armor Integrity Analyzer 17417 | -4/Warlord | Warlord forces counterattacked 17462 | -4/Warlord | Destroyed 15 combat bots 17495 | -4/Warlord | Discovered new exit (range 14) 17513 | -4/Warlord | Spotted Striker 17513 | -4/Warlord | Spotted Executioner 17518 | -4/Warlord | Destroyed Executioner 17521 | -4/Warlord | Destroyed Striker 17532 | -4/Warlord | Found Prototype Processor 17532 | -4/Warlord | Identified Exp. Targeting Computer 17546 | -4/Warlord | Destroyed 8 combat bots 17613 | -4/Warlord | Spotted Executioner 17613 | -4/Warlord | Spotted B-86 Titan 17613 | -4/Warlord | Spotted Striker 17619 | -4/Warlord | Destroyed B-86 Titan 17620 | -4/Warlord | Spotted B-90 Cyclops 17623 | -4/Warlord | Destroyed B-90 Cyclops 17625 | -4/Warlord | Destroyed Executioner 17646 | -4/Warlord | Destroyed 8 combat bots 17655 | -4/Warlord | Lost 5 allies 17714 | -4/Warlord | Spotted B-90 Cyclops 17714 | -4/Warlord | Spotted Striker 17721 | -4/Warlord | Destroyed B-90 Cyclops 17744 | -4/Warlord | Destroyed 7 combat bots 17754 | -4/Warlord | Lost 7 allies 17813 | -4/Warlord | Spotted Striker 17813 | -4/Warlord | Spotted Executioner 17823 | -4/Warlord | Destroyed Striker 17854 | -4/Warlord | Destroyed 15 combat bots 17858 | -4/Warlord | Lost 7 allies 17888 | -4/Warlord | Warlord base infiltrated, sounded retreat 17927 | -4/Warlord | Found Exp. Focal Shield 17936 | -4/Warlord | Spotted Striker 17939 | -4/Warlord | Spotted Striker 17993 | -4/Warlord | Spotted Striker 17993 | -4/Warlord | Spotted Striker 18006 | -4/Warlord | Destroyed Striker 18006 | -4/Warlord | Destroyed Striker 18045 | -4/Warlord | Destroyed 9 combat bots 18065 | -4/Warlord | Identified exit to Proximity Caves 18101 | -4/Warlord | Spotted Executioner 18102 | -4/Warlord | Reached level 29 18102 | -4/Warlord | Destroyed Executioner 18131 | -4/Warlord | Destroyed 7 combat bots 18134 | -4/Warlord | Spotted Striker 18147 | -4/Warlord | Destroyed Striker 18207 | -4/Warlord | Destroyed 17 combat bots 18212 | -4/Warlord | Spotted Executioner 18222 | -4/Warlord | Destroyed Executioner 18249 | -4/Warlord | Spotted Striker 18249 | -4/Warlord | Spotted Executioner 18251 | -4/Warlord | Spotted Striker 18255 | -4/Warlord | Destroyed Striker 18276 | -4/Warlord | Destroyed Striker 18296 | -4/Warlord | Destroyed Executioner 18313 | -4/Warlord | Core integrity fell below 20% 18320 | -4/Warlord | Destroyed 13 combat bots 18381 | -4/Warlord | Destroyed 11 combat bots 18427 | -4/Warlord | Spotted Striker 18437 | -4/Warlord | Destroyed Striker 18444 | -4/Warlord | System corruption reached 10% 18472 | -4/Warlord | Destroyed 14 combat bots 18505 | -4/Warlord | Spotted Executioner 18528 | -4/Warlord | Destroyed Executioner 18543 | -4/Warlord | Spotted Executioner 18577 | -4/Warlord | Destroyed Executioner 18694 | -4/Warlord | Spotted Striker 18734 | -4/Warlord | Spotted Executioner 18737 | -4/Warlord | Destroyed Executioner 18743 | -4/Warlord | Spotted Striker 18773 | -4/Warlord | Destroyed Striker 18779 | -4/Warlord | Spotted Executioner 18789 | -4/Warlord | Destroyed Executioner 18842 | -4/Warlord | Found Prototype Device 18842 | -4/Warlord | Identified Adv. Kinecellerator 18845 | -4/Warlord | Spotted Striker 18848 | -4/Warlord | Destroyed Striker 18872 | -4/Warlord | Destroyed 38 combat bots 18911 | -4/Warlord | Spotted Executioner 18921 | -4/Warlord | Destroyed Executioner 18981 | -4/Warlord | Destroyed 15 combat bots 19037 | -4/Warlord | Reached level 30 19086 | -4/Warlord | Destroyed 8 combat bots 19227 | -4/Warlord | Found Signal Generator 19348 | -4/Warlord | Entered Proximity Caves 19475 | -3/Proximity Caves | Attracted the attention of an 0b10 checkpoint 19546 | -3/Proximity Caves | Spotted B-86 Titan 19548 | -3/Proximity Caves | Destroyed B-86 Titan 19619 | -3/Proximity Caves | Discovered exit to Research (range 14) 19663 | -3/Proximity Caves | Entered Research 19664 | -3/Research | Identified exit to Research 19666 | -3/Research | Loaded intel: 24 terminal locations 19871 | -3/Research | Discovered new exit (range 9) 19873 | -3/Research | Identified exit to Quarantine 19889 | -3/Research | Spotted B-86 Titan 19893 | -3/Research | Destroyed B-86 Titan 20008 | -3/Research | Destroyed 7 combat bots 20081 | -3/Research | Entered Quarantine 20089 | -3/Quarantine | Found Alien Artifact 20162 | -3/Quarantine | Reached level 31 20221 | -3/Quarantine | Found Quantum Capacitor 20349 | -3/Quarantine | Found Alien Artifact 20390 | -3/Quarantine | Found Alien Energy Cannon 20390 | -3/Quarantine | Identified Core Cannon 20404 | -3/Quarantine | Spotted Fortress 20444 | -3/Quarantine | Scanned by Researcher 20502 | -3/Quarantine | Discovered exit to Research (range 3) 20525 | -3/Quarantine | Destroyed Fortress 20543 | -3/Quarantine | Found Prototype Device 20543 | -3/Quarantine | Identified Exp. Force Field 20723 | -3/Quarantine | Spotted Alpha 7 20728 | -3/Quarantine | Destroyed Alpha 7 20784 | -3/Quarantine | Discovered new exit (range 6) 20784 | -3/Quarantine | Discovered new exit (range 6) 20788 | -3/Quarantine | Entered Protoforge 20797 | -3/Protoforge | Superfortress began startup sequence 20882 | -3/Protoforge | Spotted B-86 Titan 20884 | -3/Protoforge | Destroyed B-86 Titan 20905 | -3/Protoforge | Forge Plexus network access discovered 20917 | -3/Protoforge | Discovered exit to Research (range 15) 20937 | -3/Protoforge | Spotted Decapitator 20938 | -3/Protoforge | Spotted Decapitator 20938 | -3/Protoforge | Spotted Decapitator 20938 | -3/Protoforge | Destroyed Decapitator 20940 | -3/Protoforge | Destroyed Decapitator 20942 | -3/Protoforge | Destroyed Decapitator 20958 | -3/Protoforge | Spotted Hotshot 20965 | -3/Protoforge | Spotted Hotshot 20965 | -3/Protoforge | Spotted Hotshot 20966 | -3/Protoforge | Spotted Hotshot 20981 | -3/Protoforge | Destroyed Hotshot 20982 | -3/Protoforge | Destroyed Hotshot 20984 | -3/Protoforge | Destroyed Hotshot 21033 | -3/Protoforge | Destroyed Hotshot 21038 | -3/Protoforge | First assault squad dispatched 21098 | -3/Protoforge | Spotted Immortal 21098 | -3/Protoforge | Spotted Immortal 21098 | -3/Protoforge | Spotted Decapitator 21098 | -3/Protoforge | Spotted Decapitator 21098 | -3/Protoforge | Spotted Decapitator 21098 | -3/Protoforge | Spotted Decapitator 21100 | -3/Protoforge | Destroyed Decapitator 21104 | -3/Protoforge | Destroyed Decapitator 21105 | -3/Protoforge | Destroyed Decapitator 21149 | -3/Protoforge | Destroyed Immortal 21149 | -3/Protoforge | Destroyed Immortal 21154 | -3/Protoforge | Found Prototype Device 21154 | -3/Protoforge | Identified Exp. Cloaking Device 21159 | -3/Protoforge | Found Prototype Processor 21159 | -3/Protoforge | Identified Exp. Melee Analysis Suite 21161 | -3/Protoforge | Found Prototype Device 21161 | -3/Protoforge | Identified Cep. Antimissile System 21220 | -3/Protoforge | Spotted Decapitator 21224 | -3/Protoforge | Spotted Decapitator 21224 | -3/Protoforge | Spotted Decapitator 21228 | -3/Protoforge | Destroyed Decapitator 21229 | -3/Protoforge | Destroyed Decapitator 21254 | -3/Protoforge | Spotted V614-n 21262 | -3/Protoforge | Destroyed 16 combat bots 21263 | -3/Protoforge | Destroyed V614-n 21266 | -3/Protoforge | Found Cep. Gyrokinetic System 21268 | -3/Protoforge | Found Cep. Gyrokinetic System 21272 | -3/Protoforge | Found Prototype Ballistic Gun 21272 | -3/Protoforge | Identified Multirail 21319 | -3/Protoforge | Spotted Decapitator 21319 | -3/Protoforge | Spotted Decapitator 21319 | -3/Protoforge | Spotted Decapitator 21319 | -3/Protoforge | Spotted Decapitator 21320 | -3/Protoforge | Destroyed Decapitator 21322 | -3/Protoforge | Destroyed Decapitator 21324 | -3/Protoforge | Destroyed Decapitator 21326 | -3/Protoforge | Destroyed Decapitator 21347 | -3/Protoforge | Found Exp. Terror Saw 21383 | -3/Protoforge | Spotted V911-a 21393 | -3/Protoforge | Destroyed V911-a 21416 | -3/Protoforge | Found Prototype Processor 21416 | -3/Protoforge | Identified Exp. Core Analyzer 21421 | -3/Protoforge | Found Prototype Device 21421 | -3/Protoforge | Identified Exp. Thermal Defense Suite 21429 | -3/Protoforge | Spotted V487-j 21440 | -3/Protoforge | Destroyed V487-j 21450 | -3/Protoforge | Found Cep. Hypertargeting System 21476 | -3/Protoforge | Found Cep. Combat Aerolev Unit 21507 | -3/Protoforge | Reached level 32 21522 | -3/Protoforge | Spotted V503-f 21522 | -3/Protoforge | Spotted V820-n 21569 | -3/Protoforge | Build established: Scavenger-Gunner 21571 | -3/Protoforge | Spotted V015-h 21574 | -3/Protoforge | Spotted Immortal 21575 | -3/Protoforge | Spotted V797-k 21584 | -3/Protoforge | Destroyed Immortal 21598 | -3/Protoforge | Destroyed V797-k 21600 | -3/Protoforge | Destroyed V015-h 21621 | -3/Protoforge | Found Prototype Device 21621 | -3/Protoforge | Identified Exp. Actuator Array 21697 | -3/Protoforge | Spotted AP7-3 21697 | -3/Protoforge | Spotted AP7-3 21738 | -3/Protoforge | Destroyed AP7-3 21742 | -3/Protoforge | Destroyed AP7-3 21906 | -3/Protoforge | Found Unknown Device 21906 | -3/Protoforge | Identified Launcher Loader 21949 | -3/Protoforge | Spotted V581-u 21959 | -3/Protoforge | Found Exp. Jetlance 21966 | -3/Protoforge | Destroyed V581-u 21969 | -3/Protoforge | System corruption reached 10% 21972 | -3/Protoforge | Destroyed V503-f 21975 | -3/Protoforge | Destroyed V820-n 21990 | -3/Protoforge | Found Prototype Device 21990 | -3/Protoforge | Identified Cep. Hypertargeting System 22026 | -3/Protoforge | Found Crosscalibrator 22131 | -3/Protoforge | Identified Subatomic Replicator 22131 | -3/Protoforge | Used Subatomic Replicator to replicate Faulty Cep. Thermoelectric Network 22133 | -3/Protoforge | Found Faulty Cep. Thermoelectric Network 22191 | -3/Protoforge | Found Cep. Cloak Mesh 22194 | -3/Protoforge | Found Cep. Cloak Mesh 22238 | -3/Protoforge | Additional patrols dispatched to research labs 22245 | -3/Protoforge | Found Cep. Nanofilaments [Conductive] 22245 | -3/Protoforge | Installed Cep. Nanofilaments [Conductive], 2 resistances modified: TH -15%, EM +25% 22254 | -3/Protoforge | Found Transdimensional Reconstructor 22323 | -3/Protoforge | Destroyed 7 combat bots 22370 | -3/Protoforge | Found Exp. System Purifier 22371 | -3/Protoforge | Warped through subspace 22395 | -3/Protoforge | Found Exp. System Purifier 22397 | -3/Protoforge | Found Exp. System Purifier 22398 | -3/Protoforge | Core integrity fell below 50% 22413 | -3/Protoforge | Core integrity fell below 20% 22437 | -3/Protoforge | Destroyed 12 combat bots 22614 | -3/Protoforge | Spotted Hotshot 22615 | -3/Protoforge | Spotted Hotshot 22615 | -3/Protoforge | Spotted Hotshot 22616 | -3/Protoforge | Spotted Hotshot 22620 | -3/Protoforge | Destroyed 8 combat bots 22636 | -3/Protoforge | Destroyed Hotshot 22638 | -3/Protoforge | Destroyed Hotshot 22640 | -3/Protoforge | Destroyed Hotshot 22643 | -3/Protoforge | Destroyed Hotshot 22681 | -3/Protoforge | Spotted AP7-3 22681 | -3/Protoforge | Spotted AP7-3 22718 | -3/Protoforge | Destroyed AP7-3 22719 | -3/Protoforge | Destroyed AP7-3 22721 | -3/Protoforge | Found Prototype Processor 22721 | -3/Protoforge | Identified Exp. Target Analyzer 22733 | -3/Protoforge | Spotted Hotshot 22754 | -3/Protoforge | Spotted Hotshot 22754 | -3/Protoforge | Spotted Hotshot 22754 | -3/Protoforge | Spotted Hotshot 22754 | -3/Protoforge | Spotted Hotshot 22763 | -3/Protoforge | Destroyed Hotshot 22765 | -3/Protoforge | Destroyed Hotshot 22765 | -3/Protoforge | Destroyed Hotshot 22767 | -3/Protoforge | Destroyed Hotshot 22767 | -3/Protoforge | Destroyed Hotshot 22793 | -3/Protoforge | Spotted Hotshot 22793 | -3/Protoforge | Spotted Hotshot 22793 | -3/Protoforge | Spotted Hotshot 22793 | -3/Protoforge | Spotted Hotshot 22794 | -3/Protoforge | Destroyed 10 combat bots 22795 | -3/Protoforge | Destroyed Hotshot 22800 | -3/Protoforge | Destroyed Hotshot 22803 | -3/Protoforge | Destroyed Hotshot 22804 | -3/Protoforge | Destroyed Hotshot 22805 | -3/Protoforge | Incoming assault squad redirected 22813 | -3/Protoforge | Incoming assault squad redirected 22917 | -3/Protoforge | Destroyed 7 combat bots 22970 | -3/Protoforge | Spotted Overlord 22978 | -3/Protoforge | Destroyed Overlord 22995 | -3/Protoforge | Spotted EXE-6 22996 | -3/Protoforge | Spotted EXE-6 23001 | -3/Protoforge | Destroyed EXE-6 23005 | -3/Protoforge | Destroyed EXE-6 23017 | -3/Protoforge | Spotted SKR-2 23019 | -3/Protoforge | Spotted SKR-2 23019 | -3/Protoforge | Spotted SKR-2 23027 | -3/Protoforge | Destroyed SKR-2 23028 | -3/Protoforge | Destroyed SKR-2 23029 | -3/Protoforge | Destroyed SKR-2 23060 | -3/Protoforge | Spotted EXE-6 23060 | -3/Protoforge | Spotted EXE-6 23065 | -3/Protoforge | Destroyed EXE-6 23067 | -3/Protoforge | Destroyed EXE-6 23150 | -3/Protoforge | Found Faulty Cep. Deflector Sword 23200 | -3/Protoforge | Found Exp. Remote Shield 23204 | -3/Protoforge | Found Cep. Projectile Intercept Suite 23359 | -3/Protoforge | Spotted Decapitator 23361 | -3/Protoforge | Destroyed Decapitator 23491 | -3/Protoforge | Found Cep. Weapon Articulator 23506 | -3/Protoforge | Spotted Decapitator 23508 | -3/Protoforge | Destroyed Decapitator 23535 | -3/Protoforge | Spotted Decapitator 23541 | -3/Protoforge | Destroyed Hotshot 23544 | -3/Protoforge | Spotted Executioner 23547 | -3/Protoforge | Destroyed Executioner 23551 | -3/Protoforge | Spotted Immortal 23553 | -3/Protoforge | Destroyed Decapitator 23555 | -3/Protoforge | Destroyed Immortal 23558 | -3/Protoforge | Spotted Immortal 23561 | -3/Protoforge | Spotted Immortal 23565 | -3/Protoforge | Destroyed Immortal 23586 | -3/Protoforge | Spotted Striker 23589 | -3/Protoforge | Spotted Hotshot 23591 | -3/Protoforge | Destroyed Hotshot 23592 | -3/Protoforge | Spotted Executioner 23607 | -3/Protoforge | Destroyed Striker 23646 | -3/Protoforge | Destroyed by Superfortress with Graviton Cannon Last Messages --------------- 23643_ Knocked back. 23643_ Railslug penetrates Reinforced Barrier. 23643_ Penetrated by Railslug. 23643_ Knocked back. 23643_ Penetrated by Railslug. 23643_ Railslug penetrates Reinforced Barrier. 23645_ Superfortress breaks down Unknown Ballistic Cannon. 23645_ Superfortress breaks down Cep. Helical Railcannon. 23645_ Superfortress assembles Cep. Miniperforator. 23645_ Superfortress assembles Graviton Cannon. 23645_ Superfortress assembles Prototype Ballistic Cannon. 23645_ Thermabolt penetrates Superfortress. 23646_ Penetrated by HV Slug. 23646_ HV Slug penetrates Reinforced Barrier. Map ----- +----------------------------------------------------+ | ?##"" "?????????# ########### %*#"" | | ?# ! ""#???????# #?????????#]""""#?" | | ?# =!= #???????# #?????????#########"" | | ?###++###[%####+##??????# #????????????????#"=== | | ?#" #[=#?? "#??????# %#????????????????#"=== | | ?#" # !#"" "#??????# %#????????????????#"""" | | ?#" "%=" ##???????# % #????????????????##### | | ?#" " #???????# % #????????????????????? | | ?#" #???????# #????????????????????? | | ?#" " " ##???????# % #????????????????????? | | ?#" " ""# # " "#??????# #????????????????????? | | ?#"""#??# #"""""#??????# ;???????????????###### | | ?####???# #######???#??# #???????????????#"! " | | ????????# #????????? #?# #???????????????#"]/]] | | ????????# #????????? ?# #???????????????#" [][ | | ????????# #?????????# ?# =#???????????????##### | | ????????# #?????????? ## !!##????????????????# | | ????????# #?????????? # *^[#????????????????# | | ????????# #??????????# #![!################### | | ????????# #?????????## #!%=!%[%*[!=* | | #########=!#?????????# #===%%!!%[[= = | | =* %##?????????# !=!!#########++######## | | %[[#?????????##;!%!##????#" == # | | %% * #??????????#*=%!=#????#" % | " | | ##### #####??????????#=*%!##????#" "%" " | | #???# ^#??????????????##@%!#?????#" """""# " | | #???# #???????????????#!*[#?????######### #### | | #???# % #???????????????#=!%#?????????????#####??? | | #???#%% #??????????##???#[![#????????????????????? | | #???# %#??????????# ##?#=%%#????????????????????? | | #???# ^%#???????##?# #?#FFF#????????????????????? | | #???# %#################FFF#????????????????????? | | ????#% !!!!FFF#????????????????????? | | ????#! % !! [*Exl#????????????????????? | | ????#!!| % =!b!#????????????????????? | | ????######## ########????????????????????? | | ???????????# #???????????????????????????? | | ???????????# #???????????????????????????? | | ???????????# #???????????????????????????? | | ???????????# =#???????????????????????????? | | ?????????#### ###??????????????????????????? | | ?????????# # #??????????????????????????? | | ????######## ########????????????????????? | | ????#""""""" """""#????????????????????? | | ???## """" """" #????????????????????? | | #??## "" #???######???######??? | | ##### " " #####""""#???#""""#??? | | "###" $ $ #"""" !!!#####!!!!#### | | $! | | | +----------------------------------------------------+ Best States ------------- Heat Dissipation 147 Coolant Potential 120 Energy Generation 92 Energy Capacity 3800 Matter Stores 300 Matter Capacity 300 Sight Range 23 Terrain Scan Range 16 Terrain Scan Density 10 Jamming Range 22 Cloak Strength 9 Power Amplification 20 Additional Mass Support 16 Armor Coverage 1600 Resistance: KI 30 Resistance: TH 25 Resistance: EM 90 Power Shielding 33 Point Defense Rating 480 Projectile Deflection 10 Weapon Cycling 20 Phase Shifting 5 Evasion (%) 71 Targeting Accuracy 30 Melee Accuracy 12 Core Analysis 8 Armor Integrity Analysis 50 Particle Charging 30 Salvage Targeting 4 Offensive Hacking 10 Defensive Hacking 10 Trap Extractor Capacity 4 Item Schematics ----------------- Imp. Ion Engine | -9/Materials | Extracted Hvy. Assault Rifle | -9/Materials | Extracted Visual Processing Unit | -9/Materials | Extracted Med. Laser | -9/Materials | Extracted Lgt. Cannon | -9/Materials | Extracted Lgt. EM Pulse Cannon | -9/Materials | Extracted Hvy. Hammer | -9/Materials | Extracted Hrd. Light Armor Plating | -9/Materials | Extracted Imp. EM Shotgun | -9/Materials | Extracted Propulsion Shielding | -9/Materials | Extracted Imp. Light Cannon | -9/Materials | Extracted Aluminum Leg | -9/Materials | Extracted Tractor Beam | -9/Materials | Extracted Spk. Treads | -9/Scraptown | Extrapolated Mak. Leg | -9/Scraptown | Extrapolated 0b10 Decoder Chip [Generic] | -6/Factory | Extrapolated Adv. Weight Redist. System | -6/Factory | Hacked 0b10 Decoder Chip [Scout] | -6/Factory | Extrapolated 0b10 Decoder Chip [Skirmisher] | -6/Factory | Extrapolated Machine Rigger | -6/Factory | Extrapolated Mak. Coolant Network | -6/Factory | Extrapolated Deep Structural Scanner | -6/Factory | Extrapolated Mak. Trap Scanner | -6/Factory | Extrapolated Mak. Targeting Computer | -6/Factory | Extrapolated Spk. Medium Treads | -6/Factory | Extrapolated Mak. Terrain Scanner | -6/Factory | Extrapolated Mak. Light Armor Plating | -6/Factory | Extrapolated Hvy. Beamcaster | -6/Factory | Extrapolated Mak. Power Source | -6/Factory | Extrapolated Mak. Medium Armor Plating | -6/Factory | Extrapolated Mak. Ablative Armor | -6/Factory | Extrapolated Hvy. Battle Rifle | -6/Factory | Extrapolated Bore Cannon | -6/Factory | Extrapolated Beamcaster | -6/Factory | Extrapolated Multitool | -6/Factory | Extrapolated Enh. Flamer | -6/Factory | Extrapolated Mak. Hammer | -6/Factory | Extrapolated Mak. Spear | -6/Factory | Extrapolated Energy Deflector | -6/Factory | Extrapolated Mak. Thermal Plating | -6/Factory | Extrapolated Mak. Core Shielding | -6/Factory | Extrapolated Tactical Coordination Suite | -6/Factory | Extrapolated Mak. Axe | -6/Factory | Extrapolated Plasma Flamer | -6/Lower Caves | Extrapolated Fire Trap | -6/Lower Caves | Extrapolated Heat Bomb Trap | -6/Lower Caves | Extrapolated Combat Drone Bay | -6/Data Miner | Free Lgt. Regenerative Plating | -6/Data Miner | Free Cld. Gravmag System | -6/Data Miner | Free Imp. Matter Compressor | -6/Data Miner | Free Imp. Heavy Treads | -6/Data Miner | Free Tiamat Missile Launcher | -6/Data Miner | Free Adv. Power Amplifier | -6/Data Miner | Free Adv. Datajack | -6/Data Miner | Free Mak. Heavy Armor Plating | -5/Proximity Caves | Extrapolated Mak. Transmission Jammer | -5/Factory | Extrapolated Mak. ECM Suite | -5/Factory | Extrapolated Mapping Drone Bay | -5/Factory | Extrapolated Mak. Propulsion Shielding | -5/Factory | Extrapolated Mak. Hacking Suite | -5/Factory | Extrapolated Arc Thrower | -5/Upper Caves | Extrapolated Spk. Heavy Treads | -5/Zhirov | Extrapolated Mak. System Shield | -4/Proximity Caves | Extrapolated Mak. System Restoration Module | -4/Proximity Caves | Extrapolated Mak. Shrapnel Gun | -4/Factory | Extrapolated Multireflex Exoskeleton | -4/Factory | Hacked Mak. Cloaking Device | -4/Factory | Extrapolated Mak. Kinetic Plating | -4/Factory | Extrapolated Quantum Capacitor | -4/Factory | Hacked Exp. Optical Array | -3/Quarantine | Archive Adv. Kinecellerator | -3/Quarantine | Archive Exp. Terrain Scan Processor | -3/Protoforge | Archive Com. Mass Driver | -3/Protoforge | Archive Adv. Dynamic Insulation System | -3/Protoforge | Archive Exp. Thermal Generator | -3/Protoforge | Archive Hvy. Tesla Rifle | -3/Protoforge | Archive Neutron Cannon | -3/Protoforge | Archive Cld. Nuclear Pulse Thruster | -3/Protoforge | Archive Hvy. Wave Gun | -3/Protoforge | Archive Exp. ECM Suite | -3/Protoforge | Archive Exp. Signal Interpreter | -3/Protoforge | Archive Exp. Energy Well | -3/Protoforge | Archive Adv. Energy Well | -3/Protoforge | Archive Robot Schematics ------------------ S-27 Virus | -6/Data Miner | Free B-60 Warrior | -6/Data Miner | Free G-50 Soldier | -6/Data Miner | Free M-22 Extractor | -6/Data Miner | Free B-48 Gladiator | -6/Data Miner | Free S-43 Plague | -3/Quarantine | Archive A-15 Conveyor | -3/Protoforge | Archive A-27 Freighter | -3/Protoforge | Archive W-44 Eye | -3/Protoforge | Archive A-02 Transporter | -3/Protoforge | Archive Fabricated ------------ Adv. Weight Redist. System | x2 | -6/Factory Energy Deflector | x1 | -5/Factory Multireflex Exoskeleton | x1 | -4/Factory Repaired ---------- Nothing Studied --------- Hover Unit | -9/Materials | Hacked Antigrav System | -6/Factory | Hacked Alien Tech Used ----------------- Integrated Reactor Dimensional Node Initializer Core Cannon Subatomic Replicator Concept Nanofilaments [Conductive] Transdimensional Reconstructor Achievements -------------- None Challenges ------------ None RPGLIKE | -11 -10 -10 -9 -9 -9 -9 -6 -6 -6 -6 -5 -5 -5 -5 -5 -4 -4 -4 -4 -4 -3 -3 -3 -3 --------- Run | Yrd Mat Min Mat Sto Rec Scr Fac Low Low Dat Pro Fac Upp Upp Zhi Pro Fac Upp Upp War Pro Res Qua Frg Levels Raised 31 | . 3 1 5 1 . . 7 1 . . 2 2 1 . . 1 2 1 . 2 . . 1 1 XP Earned 50865 | 3000 5056 1593 6986 1428 568 210 10632 933 581 220 1969 4088 391 376 82 1133 4043 257 164 2840 458 675 603 2579 XP Spent 48680 | 2970 4030 300 7700 1500 1100 60 8300 4000 . . 2600 3415 1400 . . . 4150 . . 3430 . . 1500 2225 Upgrades 77 | 10 7 1 13 3 1 2 12 2 . . 1 7 1 . . . 2 . . 7 . . 1 7 Power Slot 2 | . . . 1 . . . . . . . . . . . . . . . . 1 . . . . Propulsion Slot 5 | 1 1 . . . . . 2 1 . . . . . . . . . . . . . . . . Utility Slot 9 | 1 2 . 2 . . . 1 1 . . 1 . . . . . 1 . . . . . . . Weapon Slot 4 | 1 . . 1 . . . . . . . . 1 1 . . . . . . . . . . . Core Integrity 12 | . . . . . . 2 . . . . . 3 . . . . . . . 2 . . . 5 Heat Dissipation 14 | 4 1 . 6 . . . . . . . . . . . . . . . . 3 . . . . Energy Generation 3 | . . 1 . . . . 1 . . . . 1 . . . . . . . . . . . . Mass Support 4 | . 2 . . . 1 . . . . . . . . . . . . . . 1 . . . . Inventory Capacity 6 | 2 . . . . . . 1 . . . . 1 . . . . 1 . . . . . 1 . Ranged Accuracy 6 | 1 1 . 3 . . . 1 . . . . . . . . . . . . . . . . . Hack Attack % 2 | . . . . . . . 2 . . . . . . . . . . . . . . . . . Hack Defense % 2 | . . . . . . . 2 . . . . . . . . . . . . . . . . . KI Resistance % 1 | . . . . . . . 1 . . . . . . . . . . . . . . . . . TH Resistance % 3 | . . . . . . . 1 . . . . 1 . . . . . . . . . . . 1 TH Damage % 4 | . . . . 3 . . . . . . . . . . . . . . . . . . . 1 Protomatter Created 17808 | . 393 97 319 312 54 992 1125 142 154 . 112 958 24 230 . 76 2277 212 90 4613 264 524 765 4075 Integrity Restored 26541 | . 929 273 873 486 103 2035 1995 375 452 . 245 2013 240 603 . 78 2872 137 176 4873 307 396 1470 5610 Core 18694 | . 759 240 583 336 71 1654 1408 375 241 . 207 1446 240 178 . 71 1868 87 114 3347 237 291 980 3961 Parts 7847 | . 170 33 290 150 32 381 587 . 211 . 38 567 . 425 . 7 1004 50 62 1526 70 105 490 1649 Protomatter Decayed 14898 | . 54 44 50 130 19 9505 292 17 . . 79 105 25 23 . 49 787 157 29 2063 138 205 282 845 Game ------ Seed SubatomicDynamicLink Manual? 0 Play Time 06:27:35 Cumulative 482.2 hours Start 2025.12.13 @ 13:15:53 End 2025.12.14 @ 13:37:55 Sessions 3 Manual Loads 0 Difficulty Rogue Special Mode Winter2019/RPGLIKE Game No. 180 Rogue 26 Adventurer 154 Explorer 0 Win Type - Total 19 Types 4/3/3/3/2/1/0/1/1/1 Lore% 93 Gallery% 85 Achievement% 61 Wizard Run 0 Options --------- Layout 2 ASCII 0 Keyboard 0 Movement Numpad Keybinds 0 Fullscreen 2 Font 24/Smallcaps Map View 50x44 Zoom Use 0% Tactical HUD 1 Map Filters NONE Filters NONE Steam 1 RUN: 986806df-e925-4074-870b-4e159c7dd2a2